Workbook

Sheet Home
C2: Climate Risk and Vulnerability Assessment Tool: Communities and Water Infrastructure Projects
C4: Creating Climate Resilient Communities and Infrastructure
D7: Project Name: | E7: Enter here | Q7: Project Lead: | R7: Enter here
D8: Project Location: | E8: Enter here | Q8: Name of Assessor: | R8: Enter here
D9: Project Code: | E9: Enter here | Q9: No. of Beneficiaries: | R9: Enter here

Sheet Instructions
B7: AIM:
B8: The objective of the tool is to evaluate the climate risk and vulnerability of communities, as well as water infrastructure projects in communities. The tool assesses how current and future climate hazards (such as temperature, rainfall, droughts and floods) impact the broader community, as well as existing and potential water infrastructure projects in communities. Based on the prevailing risk and vulnerability, the tool explores potential interventions that will improve climate resilience.
B13: NEED FOR THIS TOOL:
B14: This tool is a revised version of the previous tool, which only focused on assessing the current risk and vulnerability levels for communities. In addition to the infrastructure lens that has been included in the updated tool, green infrastructure and the socio-ecological benefits that it provides, is also explored. The tool also utilises the updated Intergovernmental Panel on Climate Change (IPCC) methodology, as discussed in detail in the section below. The Vulnerability Sourcebook by Deutsche Gesellschaft für Internationale Zusammenarbeit GmbH (GIZ) also provided a useful framework for the tool.
B21: FRAMEWORK:
B22: In line with the Fifth Assessment Report (AR5) by the IPCC, the tool includes the following aspects:
B23: • | C23: Hazard: the occurrence or potential occurrence of a climate-related event (such as rainfall or temperature) and/or a natural or human-induced impact (such as flood or droughts), that has or may cause harm, injury, damage or the loss of a system, species or asset. Exposure: the degree to which a system, species or asset is ‘exposed’, due to its location or presence in a place or setting that is or could be impacted by a climate-related hazard. Sensitivity: the susceptibility of a system, species or asset to climate-related impacts, or the degree to which system, species or asset is or can be directly or indirectly impacted by a climate-related hazard. Adaptive Capacity: the proven or perceived ability of a system, species or asset to respond to existing or potential climate-related impacts and adjust to damage, so as to cope with consequences and take advantage of opportunities. Vulnerability: the inclination of a system, species or asset to be impacted by climate-related hazards, encompassing its sensitivity and its ability to cope or adapt to climate-related impacts. Risk: refers to the potential for (and the likelihood of) adverse climate-related impacts on a system, species or asset, resulting from the interaction of vulnerability, exposure, and hazard.
B25: •
B26: •
B28: •
B30: •
B32: •
B35: The tool relies on several questions that assess hazard, exposure, sensitivity and adaptive capacity. As shown above, the responses to these categories, will enable an assessment of risk and vulnerability will be assessed. Based on the prevalent risk and vulnerability, the tool explores potential response measures that will improve climate resilience by either decreasing sensitivity or increasing adaptive capacity. In addition, whenever possible, measures to decrease exposure will be explored.
B40: HOW TO USE THIS TOOL:
B41: The grey boxes enable the user to navigate through the tool. The boxes will either lead the user to a different place in the same tab, or to a new tab. Therefore, please click on any grey box to navigate and to complete the tool. The user is required to answer the questions provided under the "Hazard" tab, "Exposure" tab, "Sensitivity" tab, as well as the "Adaptive Capacity" tab. The user can access these tabs by clicking on the "Hazard", "Exposure", "Sensitivity", and the "Adaptive Capacity" boxes. In these tabs, questions are provided for current and future "Hazard", "Exposure", "Sensitivity", and "Adaptive Capacity". The "Output" box leads the user to the "RVAT" tab, where the responses to each question are analysed using the framework, assessed and graphed. Specifically, the tool provides outputs for "Vulnerability" and "Risk". Based on the “Risk” output, which incorporates “vulnerability”, the tool provides response options. These can be accessed by clicking on the "Responses" box at the top of your screen, or by clicking the "Responses" tab.
B55: USEFUL RESOURCES:
B56: Below is a series of sources to help answer some of the questions:
B57: 1. | C57: The CRIDF Climate Vulnerability Tool. Click on the following link: | L57: http://geoservergisweb2.hrwallingford.co.uk/CRIDF/metadata.htm
B58: 2. | C58: WRI - Aqueduct Water Risk Atlas. Click on the following link: | L58: http://www.wri.org/resources/maps/aqueduct-water-risk-atlas
B59: 3. | C59: CRIDF - Resilience Screening and Climate Change Risk Assessment Guidelines (Protocol)
B61: WHAT THIS TOOL IS NOT:
B62: This tool is intended to assess the climate risk and vulnerability of the broader community and water infrastructure, as well as to provide response options to manage these risks. This tool is not intended to provide strategic recommendations, but is merely intended to provide various response options on how to minimise and/or mitigate climate-related impacts.
B65: NOTE: 1. This tool has been developed using MS Excel 2016, and therefore, any verions before 2016 may have limited funcitonality. 2. As this tool uses several macros to enable functionality, the user is required to click on the "Enable macros" button when prompted. 3. To ensure the usability of the tool is maintained, please avoid deleting any rows and columns. As the functionality of the tool is maximised with coding, any modifications of the spreadsheets will render it useless.
U72: Developed for CRIDF by:

Sheet Hazard
F7: NOTE: ONCE YOU CLICK THIS BUTTON YOU CANNOT UNDO YOUR ACTIONS
B8: CURRENT HAZARDS
B10: Hazard | E10: Question | F10: Comments/Description | G10: Answer? | H10: list? | I10: Rating? | J10: List 1 | K10: yes/no is bad
A11: 1 | B11: 1 | C11: Temperature | D11: Seasons | E11: Does your area experience seasonal temperature variability? | F11: During the year (across seasons), is temperature higher/lower than usual? | H11: 1 | I11: =IF(G11=$J$11,$K$11,IF(G11=$J$12,$K$12,$K$13)) -> 3 | J11: Yes, higher than usual | K11: 3
A12: =A11+1 -> 2 | D12: Annual Trends | E12: Does your area experience inter-annual temperature variability? | F12: Over multiple years (i.e. trend), is temperature higher/lower than usual? | H12: 1 | I12: =IF(G12=$J$11,$K$11,IF(G12=$J$12,$K$12,$K$13)) -> 3 | J12: No, not really | K12: 1
A13: =A12+1 -> 3 | D13: Hot days | E13: During the hottest days, are you impacted by heat-related stress | F13: How often do you experience heat-related water stress? | H13: 2 | I13: =IF(G13=$J$16,$K$16,IF(G13=$J$17,$K$17,$K$18)) -> 1 | J13: Yes, lower than usual | K13: 3
I14: ="" -> 
A15: =A13+1 -> 4 | B15: 2 | C15: Rainfall | D15: Seasons | E15: Does your area experience seasonal rainfall variability? | F15: During the year (across seasons), is rainfall higher/lower than usual? | H15: 1 | I15: =IF(G15=$J$11,$K$11,IF(G15=$J$12,$K$12,$K$13)) -> 3 | J15: List 2 | K15: yes is bad
A16: 5 | D16: Annual Trends | E16: Does your area experience inter-annual rainfall variability? | F16: Over multiple years (i.e. trend), is rainfall higher/lower than usual? | H16: 1 | I16: 3 | J16: Yes | K16: 3
A17: 6 | D17: Heavy Rainfall | E17: Are heavy rainfall events prevalent in your area? | F17: Do you often have high rainfall events? | H17: 2 | I17: =IF(G17=$J$16,$K$16,IF(G17=$J$17,$K$17,$K$18)) -> 1 | J17: Sometimes | K17: 2
I18: ="" ->  | J18: No | K18: 1
A19: =A17+1 -> 7 | B19: 3 | C19: Droughts | D19: Events | E19: Are droughts prevalent in your area? | F19: Do you often experience droughts? | H19: 2 | I19: =IF(G19=$J$16,$K$16,IF(G19=$J$17,$K$17,$K$18)) -> 1
A20: 8 | D20: Timing | E20: If droughts do occur, do they occur at the same time of the year? | F20: Is the timing of droughts consistent? | H20: 3 | I20: =IF(G20=$J$21,$K$21,IF(G20=$J$22,$K$22,$K$23)) -> 0.1 | J20: List 3 | K20: yes is bad
A21: 9 | D21: Extent | E21: If droughts do occur, is the extent and intensity of the drought changing? | F21: Are droughts getting worse or better? | H21: 4 | I21: =IF(G21=$J$26,$K$26,IF(G21=$J$28,$K$28,$K$29)) -> 0.1 | J21: Often | K21: 3
A22: 10 | D22: Effect | E22: When droughts do occur, do they impact any part/aspect of your area? | F22: Are you affected by droughts? | H22: 3 | I22: =IF(G22=$J$21,$K$21,IF(G22=$J$22,$K$22,$K$23)) -> 0.1 | J22: Sometimes | K22: 2
I23: ="" ->  | J23: Not applicable | K23: 0.1
A24: =A22+1 -> 11 | B24: 4 | C24: Floods | D24: Events | E24: Are floods prevalent in your area? | F24: Do you often experience floods? | H24: 2 | I24: =IF(G24=$J$16,$K$16,IF(G24=$J$17,$K$17,$K$18)) -> 1
A25: 12 | D25: Timing | E25: If floods do occur, do they occur at the same time of the year? | F25: Is the timing of floods consistent? | H25: 3 | I25: =IF(G25=$J$21,$K$21,IF(G25=$J$22,$K$22,$K$23)) -> 0.1 | J25: List 4 | K25: yes is bad
A26: 13 | D26: Extent | E26: If floods do occur, is the extent and intensity of the floods changing? | F26: Are floods getting worse (more impact/intensity) or better (less impact/intensity)? | H26: 4 | I26: =IF(G26=$J$26,$K$26,IF(G26=$J$27,$K$27,IF(G26=$J$28,$K$28,$K$29))) -> 0.1 | J26: Yes, but more | K26: 3
A27: 14 | D27: Effect | E27: When floods do occur, do they impact any part/aspect of your area? | F27: Are you affected by floods? | H27: 3 | I27: =IF(G27=$J$21,$K$21,IF(G27=$J$22,$K$22,$K$23)) -> 0.1 | J27: No change | K27: 2
I28: ="" ->  | J28: Yes, but less | K28: 1
A29: =A27+1 -> 15 | B29: 5 | C29: Other Factors | D29: Fire | E29: Do you frequently experience fires? And if yes, are you impacted? | F29: Are you impacted by fire in and around your area? | H29: 5 | I29: =IF(G29=$J$32,$K$32,IF(G29=$J$33,$K$33,$K$34)) -> 1 | J29: Not applicable | K29: 0.1
A30: 16 | D30: Snow | E30: Do you frequently experience snowfall? And if yes, are you impacted? | F30: Are you impacted by snowfall in and around your area? | H30: 5 | I30: 1
A31: 17 | D31: Hail | E31: Do you frequently experience hail storms? And if yes, are you impacted? | F31: Are you impacted by hail in and around your area? | H31: 5 | I31: 1 | J31: List 5 | K31: yes is bad
A32: 18 | D32: Tornado | E32: Do you frequently experience tornadoes? And if yes, are you impacted? | F32: Are you impacted by tornadoes in and around your area? | H32: 5 | I32: 1 | J32: Yes, and impacted | K32: 3
A33: 19 | D33: Earthquake | E33: Do you frequently experience earthquakes? And if yes, are you impacted? | F33: Are you impacted by earthquakes in and around your area? | H33: 5 | I33: 1 | J33: Yes, but not impacted | K33: 2
A34: 20 | D34: Volcano | E34: Do you frequently experience volcanoes? And if yes, are you impacted? | F34: Are you impacted by volcanoes in and around your area? | H34: 5 | I34: 1 | J34: No | K34: 1
B36: FUTURE HAZARDS
B37: NOTE: THIS SECTION SHOULD BE COMPLETED BY THE PROJECT ASSESSOR / TECHNICAL EXPERT BASED ON ADEQUATES DESKTOP RESEARCH.
B38: Period of assessmet (for future climate and hazard conditions)?
B40: Hazard | E40: Question | F40: Comments/Description | G40: Answer? | H40: list? | I40: Rating?
A41: 1 | B41: 1 | C41: Temperature | D41: Seasons | E41: Do climate projections indicate that your area will experience seasonal temperature variability? | F41: During the year (across seasons), will temperature be higher/lower than usual? | H41: 1 | I41: =IF(G41=$J$11,$K$11,IF(G41=$J$12,$K$12,$K$13)) -> 3
A42: =A41+1 -> 2 | D42: Annual Trends | E42: Do climate projections indicate that your area will experience inter-annual temperature variability? | F42: Over multiple years (i.e. trend), will temperature be higher/lower than usual? | H42: 1 | I42: =IF(G42=$J$11,$K$11,IF(G42=$J$12,$K$12,$K$13)) -> 3
A43: =A42+1 -> 3 | D43: Changes | E43: Do climate projections indicate a change in the temperature? | F43: Temperature - Increase, decrease, or constant? | H43: 2 | I43: =IF(G43=$J$16,$K$16,IF(G43=$J$17,$K$17,$K$18)) -> 1
I44: ="" -> 
A45: =A43+1 -> 4 | B45: 2 | C45: Rainfall | D45: Seasons | E45: Do climate projections indicate that your area will experience seasonal rainfall variability? | F45: During the year (across seasons), will rainfall be higher/lower than usual? | H45: 1 | I45: =IF(G45=$J$11,$K$11,IF(G45=$J$12,$K$12,$K$13)) -> 3
A46: =A45+1 -> 5 | D46: Annual Trends | E46: Do climate projections indicate that your area will experience inter-annual rainfall variability? | F46: Over multiple years (i.e. trend), will rainfall be higher/lower than usual? | H46: 1 | I46: 3
A47: 6 | D47: Changes | E47: Do climate projections indicate a change in the rainfall patterns? | F47: Rainfall - Increase, decrease, or constant? | H47: 2 | I47: =IF(G47=$J$16,$K$16,IF(G47=$J$17,$K$17,$K$18)) -> 1
I48: ="" -> 
A49: =A47+1 -> 7 | B49: 3 | C49: Droughts | D49: Events | E49: In future, will droughts be prevalent in your area? | F49: Will you often experience droughts? | H49: 2 | I49: =IF(G49=$J$16,$K$16,IF(G49=$J$17,$K$17,$K$18)) -> 1
A50: =A49+1 -> 8 | D50: Timing | E50: If droughts will occur, will they occur at the same time of the year? | F50: Will the timing of droughts be consistent? | H50: 3 | I50: =IF(G50=$J$21,$K$21,IF(G50=$J$22,$K$22,$K$23)) -> 0.1
A51: 9 | D51: Extent | E51: If droughts will occur, will the extent and intensity of the drought change (from current conditions)? | F51: Will droughts get worse or better? | H51: 4 | I51: =IF(G51=$J$26,$K$26,IF(G51=$J$28,$K$28,$K$29)) -> 0.1
A52: 10 | D52: Effect | E52: When droughts do occur, will they impact any part/aspect of your area? | F52: Will you be affected by droughts? | H52: 3 | I52: =IF(G52=$J$21,$K$21,IF(G52=$J$22,$K$22,$K$23)) -> 0.1
I53: ="" -> 
A54: =A52+1 -> 11 | B54: 4 | C54: Floods | D54: Events | E54: In future, will floods be prevalent in your area? | F54: Will you often experience floods? | H54: 2 | I54: =IF(G54=$J$16,$K$16,IF(G54=$J$17,$K$17,$K$18)) -> 1
A55: =A54+1 -> 12 | D55: Timing | E55: If floods will occur, will they occur at the same time of the year? | F55: Will the timing of floods be consistent? | H55: 3 | I55: =IF(G55=$J$21,$K$21,IF(G55=$J$22,$K$22,$K$23)) -> 0.1
A56: 13 | D56: Extent | E56: If floods will occur, will the extent and intensity of the floods change (from current conditions)? | F56: Will floods get worse (more impact/intensity) or better (less impact/intensity)? | H56: 4 | I56: =IF(G56=$J$26,$K$26,IF(G56=$J$27,$K$27,IF(G56=$J$28,$K$28,$K$29))) -> 0.1
A57: 14 | D57: Effect | E57: When floods do occur, will they impact any part/aspect of your area? | F57: Will you be affected by floods? | H57: 3 | I57: =IF(G57=$J$21,$K$21,IF(G57=$J$22,$K$22,$K$23)) -> 0.1
I58: ="" -> 
A59: =A57+1 -> 15 | B59: 5 | C59: Other Factors | D59: Fire | E59: Will you frequently experience fires? And if yes, will you be impacted? | F59: Will you be impacted by fire in and around your area? | H59: 5 | I59: =IF(G59=$J$32,$K$32,IF(G59=$J$33,$K$33,$K$34)) -> 1
A60: =A59+1 -> 16 | D60: Snow | E60: Will you frequently experience snowfall? And if yes, will you be impacted? | F60: Will you be impacted by snowfall in and around your area? | H60: 5 | I60: 1
A61: 17 | D61: Hail | E61: Will you frequently experience hail storms? And if yes, will you be impacted? | F61: Will you be impacted by hail in and around your area? | H61: 5 | I61: 1
A62: 18 | D62: Tornado | E62: Will you frequently experience tornadoes? And if yes, will you be impacted? | F62: Will you be impacted by tornadoes in and around your area? | H62: 5 | I62: 1
A63: 19 | D63: Earthquake | E63: Will you frequently experience earthquakes? And if yes, will you be impacted? | F63: Will you be impacted by earthquakes in and around your area? | H63: 5 | I63: 1
A64: 20 | D64: Volcano | E64: Will you frequently experience volcanoes? And if yes, will you be impacted? | F64: Will you be impacted by volcanoes in and around your area? | H64: 5 | I64: 1

Sheet Exposure
F7: NOTE: ONCE YOU CLICK THIS BUTTON YOU CANNOT UNDO YOUR ACTIONS
B8: CURRENT EXPOSURE | K8: Invalid Entry!
K9: ="" -> 
B10: Exposure | E10: Question | F10: Comments/Description | G10: Answer? | I10: list? | J10: Rating? | K10: List 1 | L10: yes is bad
A11: 1 | B11: 1 | C11: Livelihoods | D11: Food security | E11: Is your food security influenced by different climatic conditions, and is it affordable? | F11: Consider food security at different at different times of the year (i.e. rainy season)? | H11: =IF(OR(G11=$K$11,G11=$K$12,G11=$K$13),$K$9,$K$8) -> Invalid Entry! | I11: 1 | J11: =IF(G11=$K$11,$L$11,IF(G11=$K$12,$L$12,$L$13)) -> 1 | K11: Yes, but not affordable | L11: 3
A12: =A11+1 -> 2 | D12: Crops | E12: Are you dependent on our own crop for food? If yes, is your crop impacted by climate events/diseases? | F12: Consider your ability to have seeds for the following year | H12: =IF(OR(G12=$K$16,G12=$K$17,G12=$K$18),$K$9,$K$8) -> Invalid Entry! | I12: 2 | J12: =IF(G12=$K$16,$L$16,IF(G12=$K$17,$L$17,$L$18)) -> 1 | K12: Yes, and affordable | L12: 2
A13: =A12+1 -> 3 | D13: Livestock | E13: Are you dependent on our own livestock for food? If yes, is your livestock impacted by climate events? | F13: This includes impacts from temperature, rainfall, droughts and/or floods | H13: =IF(OR(G13=$K$16,G13=$K$17,G13=$K$18),$K$9,$K$8) -> Invalid Entry! | I13: 2 | J13: =IF(G13=$K$16,$L$16,IF(G13=$K$17,$L$17,$L$18)) -> 1 | K13: No | L13: 1
J14: ="" -> 
A15: =A13+1 -> 4 | B15: 2 | C15: Health & Safety | D15: Water Borne Diseases | E15: Are you affected by water-borne diseases? | F15: Water-borne diseases include typhoid fever, cholera, leptospirosis and hepatitis A. | H15: =IF(OR(G15=$K$21,G15=$K$22,G15=$K$23),$K$9,$K$8) -> Invalid Entry! | I15: 3 | J15: =IF(G15=$K$21,$L$21,IF(G15=$K$22,$L$22,$L$23)) -> 1 | K15: List 2 | L15: yes is bad
A16: =A15+1 -> 5 | D16: Vector Diseases | E16: Are you affected by vector diseases? | F16: Vector diseases include malaria, dengue fever, yellow fever, and West Nile Fever | H16: =IF(OR(G16=$K$21,G16=$K$22,G16=$K$23),$K$9,$K$8) -> Invalid Entry! | I16: 3 | J16: =IF(G16=$K$21,$L$21,IF(G16=$K$22,$L$22,$L$23)) -> 1 | K16: Yes, and impacted | L16: 3
A17: =A16+1 -> 6 | D17: Safety | E17: Is your human safety & livelihoods impacted by floods? | F17: Do floods ever cause death or loss of property/food? | H17: =IF(OR(G17=$K$21,G17=$K$22,G17=$K$23),$K$9,$K$8) -> Invalid Entry! | I17: 3 | J17: =IF(G17=$K$21,$L$21,IF(G17=$K$22,$L$22,$L$23)) -> 1 | K17: Yes, but not impacted | L17: 2
J18: ="" ->  | K18: No | L18: 1
A19: =A17+1 -> 7 | B19: 3 | C19: Services | D19: Housing | E19: Do you have adequate housing? If yes, is it impacted by climate hazards? | F19: This includes impacts from temperature, rainfall and/or floods | H19: =IF(OR(G19=$K$31,G19=$K$32,G19=$K$33),$K$9,$K$8) -> Invalid Entry! | I19: 5 | J19: =IF(G19=$K$31,$L$31,IF(G19=$K$32,$L$32,$L$33)) -> 3
A20: =A19+1 -> 8 | D20: Land | E20: Do you have adequate access to land? If yes, is it impacted by climate hazards? | F20: This includes land needed for food, crops and livestock | H20: =IF(OR(G20=$K$31,G20=$K$32,G20=$K$33),$K$9,$K$8) -> Invalid Entry! | I20: 5 | J20: =IF(G20=$K$31,$L$31,IF(G20=$K$32,$L$32,$L$33)) -> 3 | K20: List 3 | L20: yes is bad
A21: =A20+1 -> 9 | D21: Community | E21: Are your community services impacted by climate hazards? | F21: This includes clinics, school, religious buildings, etc. | H21: =IF(OR(G21=$K$21,G21=$K$22,G21=$K$23),$K$9,$K$8) -> Invalid Entry! | I21: 3 | J21: =IF(G21=$K$21,$L$21,IF(G21=$K$22,$L$22,$L$23)) -> 1 | K21: Yes | L21: 3
A22: =A21+1 -> 10 | D22: Sanitation | E22: Do you have access to adequate sanitation? If yes, is it impacted by climate hazards? | F22: This is specific to household sanitation | H22: =IF(OR(G22=$K$31,G22=$K$32,G22=$K$33),$K$9,$K$8) -> Invalid Entry! | I22: 5 | J22: =IF(G22=$K$31,$L$31,IF(G22=$K$32,$L$32,$L$33)) -> 3 | K22: Sometimes | L22: 2
A23: =A22+1 -> 11 | D23: Energy | E23: Do you have reliable access to energy? If yes, is it impacted by climate hazards? | F23: This includes impacts from temperature, rainfall, droughts and/or floods | H23: =IF(OR(G23=$K$31,G23=$K$32,G23=$K$33),$K$9,$K$8) -> Invalid Entry! | I23: 5 | J23: =IF(G23=$K$31,$L$31,IF(G23=$K$32,$L$32,$L$33)) -> 3 | K23: No | L23: 1
J24: ="" -> 
A25: =A23+1 -> 12 | B25: 4 | C25: Water Supply | D25: Access | E25: Is water sufficient for the needs of your household? | F25: This includes water needed for food, crops, livestock, health | H25: =IF(OR(G25=$K$26,G25=$K$27,G25=$K$28),$K$9,$K$8) -> Invalid Entry! | I25: 4 | J25: =IF(G25=$K$26,$L$26,IF(G25=$K$27,$L$27,$L$28)) -> 3 | K25: List 4 | L25: yes is good
A26: =A25+1 -> 13 | D26: Quality | E26: Is the quality of your water supply adequate for your needs? | F26: This includes water needed for food, crops, livestock, health | H26: =IF(OR(G26=$K$26,G26=$K$27,G26=$K$28),$K$9,$K$8) -> Invalid Entry! | I26: 4 | J26: =IF(G26=$K$26,$L$26,IF(G26=$K$27,$L$27,$L$28)) -> 3 | K26: Yes | L26: 1
A27: =A26+1 -> 14 | D27: Droughts | E27: Are you affected by seasonal droughts | F27: Do you experience water shortages during droughts? | H27: =IF(OR(G27=$K$21,G27=$K$22,G27=$K$23),$K$9,$K$8) -> Invalid Entry! | I27: 3 | J27: =IF(G27=$K$21,$L$21,IF(G27=$K$22,$L$22,$L$23)) -> 1 | K27: Sometimes | L27: 2
A28: =A27+1 -> 15 | D28: Floods | E28: Is your water access impacted by floods? | F28: This includes water needed for food, crops, livestock, health | H28: =IF(OR(G28=$K$21,G28=$K$22,G28=$K$23),$K$9,$K$8) -> Invalid Entry! | I28: 3 | J28: =IF(G28=$K$21,$L$21,IF(G28=$K$22,$L$22,$L$23)) -> 1 | K28: No | L28: 3
A29: =A28+1 -> 16 | D29: Other Climate Hazards | E29: Is your water access impacted by other climate events (excl. droughts and floods)? | F29: This includes water needed for food, crops, livestock, health | H29: =IF(OR(G29=$K$21,G29=$K$22,G29=$K$23),$K$9,$K$8) -> Invalid Entry! | I29: 3 | J29: =IF(G29=$K$21,$L$21,IF(G29=$K$22,$L$22,$L$23)) -> 1
J30: ="" ->  | K30: List 5 | L30: yes/no is bad
A31: =A29+1 -> 17 | B31: 5 | C31: Infrastructure | D31: Water Supply | E31: Do you have centralised water supply infrastructure? And is it impacted by climate hazards? | F31: This includes large and small-scale infrastructure (e.g. pipelines) | H31: =IF(OR(G31=$K$31,G31=$K$32,G31=$K$33),$K$9,$K$8) -> Invalid Entry! | I31: 5 | J31: =IF(G31=$K$31,$L$31,IF(G31=$K$32,$L$32,$L$33)) -> 3 | K31: Yes, and impacted | L31: 2
A32: =A31+1 -> 18 | D32: Water Treatment | E32: Do you have centralised water treatment infrastructure? And is it impacted by climate hazards? | F32: This includes large and small-scale infrastructure | H32: =IF(OR(G32=$K$31,G32=$K$32,G32=$K$33),$K$9,$K$8) -> Invalid Entry! | I32: 5 | J32: =IF(G32=$K$31,$L$31,IF(G32=$K$32,$L$32,$L$33)) -> 3 | K32: Yes, but not impacted | L32: 1
A33: =A32+1 -> 19 | D33: Water Storage | E33: Do you have centralised water storage infrastructure? And is it impacted by climate hazards? | F33: This includes large and small-scale infrastructure (e.g. dams) | H33: =IF(OR(G33=$K$31,G33=$K$32,G33=$K$33),$K$9,$K$8) -> Invalid Entry! | I33: 5 | J33: =IF(G33=$K$31,$L$31,IF(G33=$K$32,$L$32,$L$33)) -> 3 | K33: No | L33: 3
A34: =A33+1 -> 20 | D34: Ecol & Green Infra | E34: Does green infrastructure exist in your area? And is it effective in reducing impacts from climate hazards? | F34: Consider how wetlands, parks, etc. reduce impacts from events such as floods | H34: =IF(OR(G34=$K$36,G34=$K$37,G34=$K$38),$K$9,$K$8) -> Invalid Entry! | I34: 6 | J34: =IF(G34=$K$36,$L$36,IF(G34=$K$37,$L$37,$L$38)) -> 3
A35: =A34+1 -> 21 | D35: Energy | E35: Is your energy infrastructure interrupted by floods or other climate events? | F35: This includes large and small-scale energy - e.g. grid, wind, distribution systems | H35: =IF(OR(G35=$K$21,G35=$K$22,G35=$K$23),$K$9,$K$8) -> Invalid Entry! | I35: 3 | J35: =IF(G35=$K$21,$L$21,IF(G35=$K$22,$L$22,$L$23)) -> 1 | K35: List 6 | L35: yes is good
A36: =A35+1 -> 22 | D36: Roads & Public Infra | E36: Are your roads & other public infrastructure impacted by floods or other climate events? | F36: This includes large and small scale - e.g. bridges, buildings | H36: =IF(OR(G36=$K$21,G36=$K$22,G36=$K$23),$K$9,$K$8) -> Invalid Entry! | I36: 3 | J36: =IF(G36=$K$21,$L$21,IF(G36=$K$22,$L$22,$L$23)) -> 1 | K36: Yes, and effective | L36: 1
K37: Yes, but not effective | L37: 2
B38: FUTURE EXPOSURE | K38: No | L38: 3
B39: NOTE: THIS SECTION SHOULD BE COMPLETED BY THE PROJECT ASSESSOR BASED ON CONFIRMED PROJECT PIPELINE/COMMITMENTS (WHICH SHOULD BE MADE AVAILABLE ON REQUEST). | K39: List 7
B40: Do you think that future exposure will be similar to current exposure? | G40: Yes | K40: Yes
B41: NOTE: ONCE YOU SELECT AN OPTION, PLEASE CLICK ON "UPDATE". SHOULD YOU WISH TO CHANGE YOUR RESPONSE TO THE QUESTION ABOVE, PLEASE REMEMBER TO CLICK THE "UPDATE "BUTTON" AGAIN. PLEASE NOTE THAT THIS BUTTON WILL ERASE ALL RESPONSES THAT HAVE BEEN ENTERED MANUALLY, AND WILL CHANGE ALL RESPONSES TO DEFAULT!! | K41: No
B42: Exposure | E42: Question | F42: Comments/Description | G42: Answer? | K42: Blank Answer? | L42: Default Answer?
B43: 1 | C43: Livelihoods | D43: Food security | E43: Will your food security influenced by different climatic conditions, and will it beaffordable? | F43: Consider food security at different at different times of the year (i.e. rainy season)? | H43: =IF(OR(G43=$K$11,G43=$K$12,G43=$K$13),$K$9,$K$8) -> Invalid Entry! | I43: 1 | J43: =IF(G43=$K$11,$L$11,IF(G43=$K$12,$L$12,$L$13)) -> 1 | K43: ="" ->  | L43: =IF($G$40=$K$40,G11,K43) -> 
D44: Crops | E44: Will you be dependent on our own crop for food? If yes, will your crop be impacted by climate events/diseases? | F44: Consider your ability to have seeds for the following year | H44: =IF(OR(G44=$K$16,G44=$K$17,G44=$K$18),$K$9,$K$8) -> Invalid Entry! | I44: 2 | J44: =IF(G44=$K$16,$L$16,IF(G44=$K$17,$L$17,$L$18)) -> 1 | K44: ="" ->  | L44: =IF($G$40=$K$40,G12,K44) -> 
D45: Livestock | E45: Will you be dependent on our own livestock for food? If yes, will your livestock be impacted by climate events? | F45: This includes impacts from temperature, rainfall, droughts and/or floods | H45: =IF(OR(G45=$K$16,G45=$K$17,G45=$K$18),$K$9,$K$8) -> Invalid Entry! | I45: 2 | J45: =IF(G45=$K$16,$L$16,IF(G45=$K$17,$L$17,$L$18)) -> 1 | K45: ="" ->  | L45: =IF($G$40=$K$40,G13,K45) -> 
J46: ="" ->  | K46: ="" ->  | L46: ="" -> 
B47: 2 | C47: Health & Safety | D47: Water Borne Diseases | E47: Will you be affected by water-borne diseases? | F47: Water-borne diseases include typhoid fever, cholera, leptospirosis and hepatitis A. | H47: =IF(OR(G47=$K$21,G47=$K$22,G47=$K$23),$K$9,$K$8) -> Invalid Entry! | I47: 3 | J47: =IF(G47=$K$21,$L$21,IF(G47=$K$22,$L$22,$L$23)) -> 1 | K47: ="" ->  | L47: =IF($G$40=$K$40,G15,K47) -> 
D48: Vector Diseases | E48: Will you be affected by vector diseases? | F48: Vector diseases include malaria, dengue fever, yellow fever, and West Nile Fever | H48: =IF(OR(G48=$K$21,G48=$K$22,G48=$K$23),$K$9,$K$8) -> Invalid Entry! | I48: 3 | J48: =IF(G48=$K$21,$L$21,IF(G48=$K$22,$L$22,$L$23)) -> 1 | K48: ="" ->  | L48: =IF($G$40=$K$40,G16,K48) -> 
D49: Safety | E49: Will your human safety & livelihoods be impacted by floods? | F49: Will floods cause death or loss of property/food? | H49: =IF(OR(G49=$K$21,G49=$K$22,G49=$K$23),$K$9,$K$8) -> Invalid Entry! | I49: 3 | J49: =IF(G49=$K$21,$L$21,IF(G49=$K$22,$L$22,$L$23)) -> 1 | K49: ="" ->  | L49: =IF($G$40=$K$40,G17,K49) -> 
J50: ="" ->  | K50: ="" ->  | L50: ="" -> 
B51: 3 | C51: Services | D51: Housing | E51: Will you have adequate housing? If yes, will it be impacted by climate hazards? | F51: This includes impacts from temperature, rainfall and/or floods | H51: =IF(OR(G51=$K$31,G51=$K$32,G51=$K$33),$K$9,$K$8) -> Invalid Entry! | I51: 5 | J51: =IF(G51=$K$31,$L$31,IF(G51=$K$32,$L$32,$L$33)) -> 3 | K51: ="" ->  | L51: =IF($G$40=$K$40,G19,K51) -> 
D52: Land | E52: Will you have adequate access to land? If yes, will it be impacted by climate hazards? | F52: This includes land needed for food, crops and livestock | H52: =IF(OR(G52=$K$31,G52=$K$32,G52=$K$33),$K$9,$K$8) -> Invalid Entry! | I52: 5 | J52: =IF(G52=$K$31,$L$31,IF(G52=$K$32,$L$32,$L$33)) -> 3 | K52: ="" ->  | L52: =IF($G$40=$K$40,G20,K52) -> 
D53: Community | E53: Will your community services be impacted by climate hazards? | F53: This includes clinics, school, religious buildings, etc. | H53: =IF(OR(G53=$K$21,G53=$K$22,G53=$K$23),$K$9,$K$8) -> Invalid Entry! | I53: 3 | J53: =IF(G53=$K$21,$L$21,IF(G53=$K$22,$L$22,$L$23)) -> 1 | K53: ="" ->  | L53: =IF($G$40=$K$40,G21,K53) -> 
D54: Sanitation | E54: Will you have access to adequate sanitation? If yes, will it be impacted by climate hazards? | F54: This is specific to household sanitation | H54: =IF(OR(G54=$K$31,G54=$K$32,G54=$K$33),$K$9,$K$8) -> Invalid Entry! | I54: 5 | J54: =IF(G54=$K$31,$L$31,IF(G54=$K$32,$L$32,$L$33)) -> 3 | K54: ="" ->  | L54: =IF($G$40=$K$40,G22,K54) -> 
D55: Energy | E55: Will you have reliable access to energy? If yes, will it be impacted by climate hazards? | F55: This includes impacts from temperature, rainfall, droughts and/or floods | H55: =IF(OR(G55=$K$31,G55=$K$32,G55=$K$33),$K$9,$K$8) -> Invalid Entry! | I55: 5 | J55: =IF(G55=$K$31,$L$31,IF(G55=$K$32,$L$32,$L$33)) -> 3 | K55: ="" ->  | L55: =IF($G$40=$K$40,G23,K55) -> 
J56: ="" ->  | K56: ="" ->  | L56: ="" -> 
B57: 4 | C57: Water Supply | D57: Access | E57: Will water be sufficient for the needs of your household? | F57: This includes water needed for food, crops, livestock, health | H57: =IF(OR(G57=$K$26,G57=$K$27,G57=$K$28),$K$9,$K$8) -> Invalid Entry! | I57: 4 | J57: =IF(G57=$K$26,$L$26,IF(G57=$K$27,$L$27,$L$28)) -> 3 | K57: ="" ->  | L57: =IF($G$40=$K$40,G25,K57) -> 
D58: Quality | E58: Will the quality of your water supply be adequate for your needs? | F58: This includes water needed for food, crops, livestock, health | H58: =IF(OR(G58=$K$26,G58=$K$27,G58=$K$28),$K$9,$K$8) -> Invalid Entry! | I58: 4 | J58: =IF(G58=$K$26,$L$26,IF(G58=$K$27,$L$27,$L$28)) -> 3 | K58: ="" ->  | L58: =IF($G$40=$K$40,G26,K58) -> 
D59: Droughts | E59: Will you be affected by seasonal droughts | F59: Will you experience water shortages during droughts? | H59: =IF(OR(G59=$K$21,G59=$K$22,G59=$K$23),$K$9,$K$8) -> Invalid Entry! | I59: 3 | J59: =IF(G59=$K$21,$L$21,IF(G59=$K$22,$L$22,$L$23)) -> 1 | K59: ="" ->  | L59: =IF($G$40=$K$40,G27,K59) -> 
D60: Floods | E60: Will your water access be impacted by floods? | F60: This includes water needed for food, crops, livestock, health | H60: =IF(OR(G60=$K$21,G60=$K$22,G60=$K$23),$K$9,$K$8) -> Invalid Entry! | I60: 3 | J60: =IF(G60=$K$21,$L$21,IF(G60=$K$22,$L$22,$L$23)) -> 1 | K60: ="" ->  | L60: =IF($G$40=$K$40,G28,K60) -> 
D61: Other Climate Hazards | E61: Will your water access be impacted by other climate events (excl. droughts and floods)? | F61: This includes water needed for food, crops, livestock, health | H61: =IF(OR(G61=$K$21,G61=$K$22,G61=$K$23),$K$9,$K$8) -> Invalid Entry! | I61: 3 | J61: =IF(G61=$K$21,$L$21,IF(G61=$K$22,$L$22,$L$23)) -> 1 | K61: ="" ->  | L61: =IF($G$40=$K$40,G29,K61) -> 
J62: ="" ->  | K62: ="" ->  | L62: ="" -> 
B63: 5 | C63: Infrastructure | D63: Water Supply | E63: Will you have centralised water supply infrastructure? And will it be impacted by climate hazards? | F63: This includes large and small-scale infrastructure (e.g. pipelines) | H63: =IF(OR(G63=$K$31,G63=$K$32,G63=$K$33),$K$9,$K$8) -> Invalid Entry! | I63: 5 | J63: =IF(G63=$K$31,$L$31,IF(G63=$K$32,$L$32,$L$33)) -> 3 | K63: ="" ->  | L63: =IF($G$40=$K$40,G31,K63) -> 
D64: Water Treatment | E64: Will you have centralised water treatment infrastructure? And will it be impacted by climate hazards? | F64: This includes large and small-scale infrastructure | H64: =IF(OR(G64=$K$31,G64=$K$32,G64=$K$33),$K$9,$K$8) -> Invalid Entry! | I64: 5 | J64: =IF(G64=$K$31,$L$31,IF(G64=$K$32,$L$32,$L$33)) -> 3 | K64: ="" -> 
D65: Water Storage | E65: Will you have centralised water storage infrastructure? And will it be impacted by climate hazards? | F65: This includes large and small-scale infrastructure (e.g. dams) | H65: =IF(OR(G65=$K$31,G65=$K$32,G65=$K$33),$K$9,$K$8) -> Invalid Entry! | I65: 5 | J65: =IF(G65=$K$31,$L$31,IF(G65=$K$32,$L$32,$L$33)) -> 3 | K65: ="" -> 
D66: Ecol & Green Infra | E66: Will green infrastructure exist in your area? And will it be effective in reducing impacts from climate hazards? | F66: Consider how wetlands, parks, etc. reduce impacts from events such as floods | H66: =IF(OR(G66=$K$36,G66=$K$37,G66=$K$38),$K$9,$K$8) -> Invalid Entry! | I66: 6 | J66: =IF(G66=$K$36,$L$36,IF(G66=$K$37,$L$37,$L$38)) -> 3 | K66: ="" -> 
D67: Energy | E67: Will your energy infrastructure be interrupted by floods or other climate events? | F67: This includes large and small-scale energy - e.g. grid, wind, distribution systems | H67: =IF(OR(G67=$K$21,G67=$K$22,G67=$K$23),$K$9,$K$8) -> Invalid Entry! | I67: 3 | J67: =IF(G67=$K$21,$L$21,IF(G67=$K$22,$L$22,$L$23)) -> 1 | K67: ="" -> 
D68: Roads & Public Infra | E68: Will your roads & other public infrastructure be impacted by floods or other climate events? | F68: This includes large and small scale - e.g. bridges, buildings | H68: =IF(OR(G68=$K$21,G68=$K$22,G68=$K$23),$K$9,$K$8) -> Invalid Entry! | I68: 3 | J68: =IF(G68=$K$21,$L$21,IF(G68=$K$22,$L$22,$L$23)) -> 1 | K68: ="" -> 

Sheet Sensitivity
F7: NOTE: ONCE YOU CLICK THIS BUTTON YOU CANNOT UNDO YOUR ACTIONS | K7: Invalid Entry!
B8: CURRENT SENSITIVITY | K8: ="" -> 
K9: high score is bad
B10: Sensitivity | E10: Question | F10: Comments/Description | G10: Answer? | I10: list? | J10: Rating? | K10: List1 | L10: yes is good
A11: 1 | B11: 1 | C11: Human | D11: Diverse Livelihoods | E11: Do you have other ways to support your livelihood? | F11: Including non-agricultural activities | H11: =IF(OR(G11=$K$11,G11=$K$12,G11=$K$13),$K$8,$K$7) -> Invalid Entry! | I11: 1 | J11: =IF(G11=$K$11,$L$11,IF(G11=$K$12,$L$12,$L$13)) -> 3 | K11: Yes | L11: 1
A12: =A11+1 -> 2 | D12: Climate Information | E12: Do you have adequate education levels to understand climate information? | F12: Consider school level | H12: =IF(OR(G12=$K$16,G12=$K$17),$K$8,$K$7) -> Invalid Entry! | I12: 2 | J12: =IF(G12=$K$16,$L$16,$L$17) -> 3 | K12: Sometimes | L12: 2
A13: =A12+1 -> 3 | D13: Agric Information | E13: Have you received any training on climate-smart agriculture? | F13: This includes info/skills on temperature, rainfall, droughts and/or floods | H13: =IF(OR(G13=$K$16,G13=$K$17),$K$8,$K$7) -> Invalid Entry! | I13: 2 | J13: =IF(G13=$K$16,$L$16,$L$17) -> 3 | K13: No | L13: 3
A14: 4 | D14: Women | E14: Are you involved in agriculture and/or securing water in your household? | F14: nb - specific to women | H14: =IF(OR(G14=$K$11,G14=$K$12,G14=$K$13),$K$8,$K$7) -> Invalid Entry! | I14: 1 | J14: =IF(G14=$K$11,$L$11,IF(G14=$K$12,$L$12,$L$13)) -> 3
A15: 5 | D15: Health | E15: Would you consider you and your family to be healthy? | F15: This includes waterborne and vector diseases | H15: =IF(OR(G15=$K$16,G15=$K$17),$K$8,$K$7) -> Invalid Entry! | I15: 2 | J15: =IF(G15=$K$16,$L$16,$L$17) -> 3 | K15: List 2 | L15: yes is good
J16: ="" ->  | K16: Yes | L16: 1
A17: =A15+1 -> 6 | B17: 2 | C17: Institutions | D17: Water user forums | E17: Are you part of a group that discusses water challenges in your area? | F17: Do they exist, and do you feel adequately represented? | H17: =IF(OR(G17=$K$20,G17=$K$21,G17=$K$22),$K$8,$K$7) -> Invalid Entry! | I17: 3 | J17: =IF(G17=$K$20,$L$20,IF(G17=$K$21,$L$21,$L$22)) -> 3 | K17: No | L17: 3
A18: 7 | D18: Farming forums | E18: Are you part of a group that discusses farming challenges in your area? | F18: Do they exist, and do you feel adequately represented? | H18: =IF(OR(G18=$K$20,G18=$K$21,G18=$K$22),$K$8,$K$7) -> Invalid Entry! | I18: 3 | J18: =IF(G18=$K$20,$L$20,IF(G18=$K$21,$L$21,$L$22)) -> 3
A19: 8 | D19: Weather data | E19: Do you have a group/organisation that disseminates climate/weather data? | F19: Is there someone who tells you what the weather will be like in future? | H19: =IF(OR(G19=$K$20,G19=$K$21,G19=$K$22),$K$8,$K$7) -> Invalid Entry! | I19: 3 | J19: =IF(G19=$K$20,$L$20,IF(G19=$K$21,$L$21,$L$22)) -> 3 | K19: List 3 | L19: yes is good
A20: 9 | D20: Health | E20: Do you have reasonable access to health services? | F20: Consider access to clinics and hospitals? | H20: =IF(OR(G20=$K$20,G20=$K$21,G20=$K$22),$K$8,$K$7) -> Invalid Entry! | I20: 3 | J20: =IF(G20=$K$20,$L$20,IF(G20=$K$21,$L$21,$L$22)) -> 3 | K20: Yes, and adequate | L20: 1
J21: ="" ->  | K21: Yes, but not adequate | L21: 2
A22: =A20+1 -> 10 | B22: 3 | C22: Infrastructure | D22: Water Storage | E22: Do you have access to water storage facilities? | F22: Consider household water storage | H22: =IF(OR(G22=$K$16,G22=$K$17),$K$8,$K$7) -> Invalid Entry! | I22: 2 | J22: =IF(G22=$K$16,$L$16,$L$17) -> 3 | K22: No | L22: 3
A23: =A22+1 -> 11 | D23: Water Supply | E23: If it exists, is your water supply and/or treatment infrastructure reliable? | F23: Consider if these are damaged during floods or other climate events | H23: =IF(OR(G23=$K$25,G23=$K$26,G23=$K$27),$K$8,$K$7) -> Invalid Entry! | I23: 4 | J23: =IF(G23=$K$25,$L$25,IF(G23=$K$26,$L$26,$L$27)) -> 3
A24: 12 | D24: Roads & Transport | E24: Are your roads and transport infrastructure in adequate condition? | F24: Consider if these are damaged during floods or other climate events | H24: =IF(OR(G24=$K$16,G24=$K$17),$K$8,$K$7) -> Invalid Entry! | I24: 2 | J24: =IF(G24=$K$16,$L$16,$L$17) -> 3 | K24: List 4 | L24: yes is good
A25: 13 | D25: Energy | E25: If it exists, is your energy supply dependent on water? | F25: Consider if these are impacted by droughts, flood or other climate events | H25: =IF(OR(G25=$K$25,G25=$K$26,G25=$K$27),$K$8,$K$7) -> Invalid Entry! | I25: 4 | J25: =IF(G25=$K$25,$L$25,IF(G25=$K$26,$L$26,$L$27)) -> 3 | K25: Yes | L25: 1
A26: 14 | D26: Housing / Shelter | E26: During climate events do you have access to your shelter? | F26: Consider if it is damaged during floods or other climate events | H26: =IF(OR(G26=$K$16,G26=$K$17),$K$8,$K$7) -> Invalid Entry! | I26: 2 | J26: =IF(G26=$K$16,$L$16,$L$17) -> 3 | K26: No | L26: 2
J27: ="" ->  | K27: Not applicable | L27: 3
A28: =A26+1 -> 15 | B28: 4 | C28: Natural Resources | D28: Land | E28: Do you have secure land rights? | F28: Do you own your land? | H28: =IF(OR(G28=$K$16,G28=$K$17),$K$8,$K$7) -> Invalid Entry! | I28: 2 | J28: =IF(G28=$K$16,$L$16,$L$17) -> 3
A29: 16 | D29: Water Resources | E29: Are the water resources in your area healthy? | F29: Is your area's water resource healthy? | H29: =IF(OR(G29=$K$11,G29=$K$12,G29=$K$13),$K$8,$K$7) -> Invalid Entry! | I29: 1 | J29: =IF(G29=$K$11,$L$11,IF(G29=$K$12,$L$12,$L$13)) -> 3
A30: 17 | D30: Ecosystems | E30: Are you situated in a healthy ecosystem? | F30: Are your area's ecosystem and natural resources healthy? | H30: =IF(OR(G30=$K$11,G30=$K$12,G30=$K$13),$K$8,$K$7) -> Invalid Entry! | I30: 1 | J30: =IF(G30=$K$11,$L$11,IF(G30=$K$12,$L$12,$L$13)) -> 3
A31: 18 | D31: Soil | E31: Is your soil of adequate quality for your livelihood needs? | F31: Is your area's soil healthy? | H31: =IF(OR(G31=$K$16,G31=$K$17),$K$8,$K$7) -> Invalid Entry! | I31: 2 | J31: =IF(G31=$K$16,$L$16,$L$17) -> 3
J32: ="" -> 
A33: =A31+1 -> 19 | B33: 5 | C33: Financial Resources | D33: Sustainable Income | E33: Do you have a sustainable source of income? | F33: This includes a salary, as well as resources to get you through tough times | H33: =IF(OR(G33=$K$20,G33=$K$21,G33=$K$22),$K$8,$K$7) -> Invalid Entry! | I33: 3 | J33: =IF(G33=$K$20,$L$20,IF(G33=$K$21,$L$21,$L$22)) -> 3
A34: =A33+1 -> 20 | D34: Diverse Income | E34: Do you have diversified income sources? | F34: Do you have more than one source of income? | H34: =IF(OR(G34=$K$11,G34=$K$12,G34=$K$13),$K$8,$K$7) -> Invalid Entry! | I34: 1 | J34: =IF(G34=$K$11,$L$11,IF(G34=$K$12,$L$12,$L$13)) -> 3
B36: FUTURE SENSITIVITY | K36: List 5
B37: NOTE: THIS SECTION SHOULD BE COMPLETED BY THE PROJECT ASSESSOR BASED ON CONFIRMED PROJECT PIPELINE/COMMITMENTS (WHICH SHOULD BE MADE AVAILABLE ON REQUEST). | K37: Yes
B38: Do you think that future sensitivity will be similar to the current sensitivity? | G38: Yes | K38: No
B39: NOTE: ONCE YOU SELECT AN OPTION, PLEASE CLICK ON "UPDATE". SHOULD YOU WISH TO CHANGE YOUR RESPONSE TO THE QUESTION ABOVE, PLEASE REMEMBER TO CLICK THE "UPDATE "BUTTON" AGAIN. PLEASE NOTE THAT THIS BUTTON WILL ERASE ALL RESPONSES THAT HAVE BEEN ENTERED MANUALLY, AND WILL CHANGE ALL RESPONSES TO DEFAULT!!
B40: Sensitivity | E40: Question | F40: Comments/Description | G40: Answer? | I40: list? | J40: Rating? | K40: Blank Answer? | L40: Default Answer?
B41: 1 | C41: Human | D41: Diverse Livelihoods | E41: Will you have other ways to support your livelihood? | F41: Including non-agricultural activities | H41: =IF(OR(G41=$K$11,G41=$K$12,G41=$K$13),$K$8,$K$7) -> Invalid Entry! | I41: 1 | J41: =IF(G41=$K$11,$L$11,IF(G41=$K$12,$L$12,$L$13)) -> 3 | K41: ="" ->  | L41: =IF($G$38=$K$37,G11,K41) -> 
D42: Climate Information | E42: Will you have adequate education levels to understand climate information? | F42: Consider school level | H42: =IF(OR(G42=$K$16,G42=$K$17),$K$8,$K$7) -> Invalid Entry! | I42: 2 | J42: =IF(G42=$K$16,$L$16,$L$17) -> 3 | K42: ="" ->  | L42: =IF($G$38=$K$37,G12,K42) -> 
D43: Agric Information | E43: Will you receive any training on climate-smart agriculture? | F43: This includes info/skills on temperature, rainfall, droughts and/or floods | H43: =IF(OR(G43=$K$16,G43=$K$17),$K$8,$K$7) -> Invalid Entry! | I43: 2 | J43: =IF(G43=$K$16,$L$16,$L$17) -> 3 | K43: ="" ->  | L43: =IF($G$38=$K$37,G13,K43) -> 
D44: Women | E44: Will you be involved in agriculture and/or securing water in your household? | F44: nb - specific to women | H44: =IF(OR(G44=$K$11,G44=$K$12,G44=$K$13),$K$8,$K$7) -> Invalid Entry! | I44: 1 | J44: =IF(G44=$K$11,$L$11,IF(G44=$K$12,$L$12,$L$13)) -> 3 | K44: ="" ->  | L44: =IF($G$38=$K$37,G14,K44) -> 
D45: Health | E45: In future, will you consider you and your family to be healthy? | F45: This includes waterborne and vector diseases | H45: =IF(OR(G45=$K$16,G45=$K$17),$K$8,$K$7) -> Invalid Entry! | I45: 2 | J45: =IF(G45=$K$16,$L$16,$L$17) -> 3 | K45: ="" ->  | L45: =IF($G$38=$K$37,G15,K45) -> 
J46: ="" ->  | K46: ="" ->  | L46: ="" -> 
B47: 2 | C47: Institutions | D47: Water user forums | E47: Will you be part of a group that discusses water challenges in your area? | F47: Will they exist, and will you feel adequately represented? | H47: =IF(OR(G47=$K$20,G47=$K$21,G47=$K$22),$K$8,$K$7) -> Invalid Entry! | I47: 3 | J47: =IF(G47=$K$20,$L$20,IF(G47=$K$21,$L$21,$L$22)) -> 3 | K47: ="" ->  | L47: =IF($G$38=$K$37,G17,K47) -> 
D48: Farming forums | E48: Will you be part of a group that discusses farming challenges in your area? | F48: Will they exist, and will you feel adequately represented? | H48: =IF(OR(G48=$K$20,G48=$K$21,G48=$K$22),$K$8,$K$7) -> Invalid Entry! | I48: 3 | J48: =IF(G48=$K$20,$L$20,IF(G48=$K$21,$L$21,$L$22)) -> 3 | K48: ="" ->  | L48: =IF($G$38=$K$37,G18,K48) -> 
D49: Weather data | E49: Will you have a group/organisation that disseminates climate/weather data? | F49: Will there be someone who tells you what the weather will be like in future? | H49: =IF(OR(G49=$K$20,G49=$K$21,G49=$K$22),$K$8,$K$7) -> Invalid Entry! | I49: 3 | J49: =IF(G49=$K$20,$L$20,IF(G49=$K$21,$L$21,$L$22)) -> 3 | K49: ="" ->  | L49: =IF($G$38=$K$37,G19,K49) -> 
D50: Health | E50: Will you have reasonable access to health services? | F50: Consider access to clinics and hospitals? | H50: =IF(OR(G50=$K$20,G50=$K$21,G50=$K$22),$K$8,$K$7) -> Invalid Entry! | I50: 3 | J50: =IF(G50=$K$20,$L$20,IF(G50=$K$21,$L$21,$L$22)) -> 3 | K50: ="" ->  | L50: =IF($G$38=$K$37,G20,K50) -> 
J51: ="" ->  | K51: ="" ->  | L51: ="" -> 
B52: 3 | C52: Infrastructure | D52: Water Storage | E52: Will you have access to water storage facilities? | F52: Consider household water storage | H52: =IF(OR(G52=$K$16,G52=$K$17),$K$8,$K$7) -> Invalid Entry! | I52: 2 | J52: =IF(G52=$K$16,$L$16,$L$17) -> 3 | K52: ="" ->  | L52: =IF($G$38=$K$37,G22,K52) -> 
D53: Water Supply | E53: If it exists, will your water supply and/or treatment infrastructure be reliable? | F53: Consider if these will be damaged during floods or other climate events | H53: =IF(OR(G53=$K$25,G53=$K$26,G53=$K$27),$K$8,$K$7) -> Invalid Entry! | I53: 4 | J53: =IF(G53=$K$25,$L$25,IF(G53=$K$26,$L$26,$L$27)) -> 3 | K53: ="" ->  | L53: =IF($G$38=$K$37,G23,K53) -> 
D54: Roads & Transport | E54: Will your roads and transport infrastructure be in adequate condition? | F54: Consider if these will be damaged during floods or other climate events | H54: =IF(OR(G54=$K$16,G54=$K$17),$K$8,$K$7) -> Invalid Entry! | I54: 2 | J54: =IF(G54=$K$16,$L$16,$L$17) -> 3 | K54: ="" ->  | L54: =IF($G$38=$K$37,G24,K54) -> 
D55: Energy | E55: If it exists, will your energy supply be dependent on water? | F55: Consider if these will be impacted during floods or other climate events | H55: =IF(OR(G55=$K$25,G55=$K$26,G55=$K$27),$K$8,$K$7) -> Invalid Entry! | I55: 4 | J55: =IF(G55=$K$25,$L$25,IF(G55=$K$26,$L$26,$L$27)) -> 3 | K55: ="" ->  | L55: =IF($G$38=$K$37,G25,K55) -> 
D56: Housing / Shelter | E56: During climate events will you have access to your shelter? | F56: Consider if it will be impacted during floods or other climate events | H56: =IF(OR(G56=$K$16,G56=$K$17),$K$8,$K$7) -> Invalid Entry! | I56: 2 | J56: =IF(G56=$K$16,$L$16,$L$17) -> 3 | K56: ="" ->  | L56: =IF($G$38=$K$37,G26,K56) -> 
J57: ="" ->  | K57: ="" ->  | L57: ="" -> 
B58: 4 | C58: Natural Resources | D58: Land | E58: Will you have secure land rights? | F58: Will you own your land? | H58: =IF(OR(G58=$K$16,G58=$K$17),$K$8,$K$7) -> Invalid Entry! | I58: 2 | J58: =IF(G58=$K$16,$L$16,$L$17) -> 3 | K58: ="" ->  | L58: =IF($G$38=$K$37,G28,K58) -> 
D59: Water Resources | E59: Will the water resources in your area be healthy? | F59: Will your area's water resource be healthy? | H59: =IF(OR(G59=$K$11,G59=$K$12,G59=$K$13),$K$8,$K$7) -> Invalid Entry! | I59: 1 | J59: =IF(G59=$K$11,$L$11,IF(G59=$K$12,$L$12,$L$13)) -> 3 | K59: ="" ->  | L59: =IF($G$38=$K$37,G29,K59) -> 
D60: Ecosystems | E60: Will you be situated in a healthy ecosystem? | F60: Will your area's ecosystem and natural resources be healthy? | H60: =IF(OR(G60=$K$11,G60=$K$12,G60=$K$13),$K$8,$K$7) -> Invalid Entry! | I60: 1 | J60: =IF(G60=$K$11,$L$11,IF(G60=$K$12,$L$12,$L$13)) -> 3 | K60: ="" ->  | L60: =IF($G$38=$K$37,G30,K60) -> 
D61: Soil | E61: Will your soil be of adequate quality for your livelihood needs? | F61: Will your area's soil be healthy? | H61: =IF(OR(G61=$K$16,G61=$K$17),$K$8,$K$7) -> Invalid Entry! | I61: 2 | J61: =IF(G61=$K$16,$L$16,$L$17) -> 3 | K61: ="" ->  | L61: =IF($G$38=$K$37,G31,K61) -> 
J62: ="" ->  | K62: ="" ->  | L62: ="" -> 
B63: 5 | C63: Financial Resources | D63: Sustainable Income | E63: Will you have a sustainable source of income? | F63: This includes a salary, as well as resources to get you through tough times | H63: =IF(OR(G63=$K$20,G63=$K$21,G63=$K$22),$K$8,$K$7) -> Invalid Entry! | I63: 3 | J63: =IF(G63=$K$20,$L$20,IF(G63=$K$21,$L$21,$L$22)) -> 3 | K63: ="" ->  | L63: =IF($G$38=$K$37,G33,K63) -> 
D64: Diverse Income | E64: Will you have diversified income sources? | F64: Will you have more than one source of income? | H64: =IF(OR(G64=$K$11,G64=$K$12,G64=$K$13),$K$8,$K$7) -> Invalid Entry! | I64: 1 | J64: =IF(G64=$K$11,$L$11,IF(G64=$K$12,$L$12,$L$13)) -> 3 | K64: ="" ->  | L64: =IF($G$38=$K$37,G34,K64) -> 

Sheet Adaptive Capacity
F7: NOTE: ONCE YOU CLICK THIS BUTTON YOU CANNOT UNDO YOUR ACTIONS | K7: Invalid Entry!
B8: CURRENT ADAPTIVE CAPACITY | K8: ="" -> 
K9: high score is good
B10: Adaptive Capacity | E10: Question | F10: Comments/Description | G10: Answer? | I10: list? | J10: Rating? | K10: List 1 | L10: yes is good
A11: 1 | B11: 1 | C11: Human | D11: Climate Info | E11: Do you have access to climate-related information to enable adaptation and resilience? | F11: This includes info/skills on temperature, rainfall, droughts and/or floods | H11: =IF(OR(G11=$K$11,G11=$K$12,G11=$K$13),$K$8,$K$7) -> Invalid Entry! | I11: 1 | J11: =IF(G11=$K$11,$L$11,IF(G11=$K$12,$L$12,$L$13)) -> 1 | K11: Yes | L11: 3
A12: =A11+1 -> 2 | D12: Climate Smart Agr | E12: Do you have access to information about climate-smart agriculture? | F12: This includes info/skills on temperature, rainfall, droughts and/or floods | H12: =IF(OR(G12=$K$16,G12=$K$17),$K$8,$K$7) -> Invalid Entry! | I12: 2 | J12: =IF(G12=$K$16,$L$16,$L$17) -> 1 | K12: Sometimes | L12: 2
A13: =A12+1 -> 3 | D13: EWS Info | E13: Do you have skills and information on how to react/respond to an early warning system (EWS)? | F13: This includes info/skills on temperature, rainfall, droughts and/or floods | H13: =IF(OR(G13=$K$16,G13=$K$17),$K$8,$K$7) -> Invalid Entry! | I13: 2 | J13: =IF(G13=$K$16,$L$16,$L$17) -> 1 | K13: No | L13: 1
A14: 4 | D14: Women | E14: Do women have skills and information about climate-smart agriculture? | F14: nb - specific to women | H14: =IF(OR(G14=$K$11,G14=$K$12,G14=$K$13),$K$8,$K$7) -> Invalid Entry! | I14: 1 | J14: =IF(G14=$K$11,$L$11,IF(G14=$K$12,$L$12,$L$13)) -> 1
A15: 5 | D15: Health Awareness | E15: Are you provided with information regarding your families’ health? | F15: This includes waterborne and vector diseases | H15: =IF(OR(G15=$K$11,G15=$K$12,G15=$K$13),$K$8,$K$7) -> Invalid Entry! | I15: 1 | J15: =IF(G15=$K$11,$L$11,IF(G15=$K$12,$L$12,$L$13)) -> 1 | K15: List 2 | L15: yes is good
J16: ="" ->  | K16: Yes | L16: 3
A17: =A15+1 -> 6 | B17: 2 | C17: Institutions | D17: EWS | E17: Is there an early warning system (EWS) in your community? | F17: Consider an EWS that warns you during disasters | H17: =IF(OR(G17=$K$16,G17=$K$17),$K$8,$K$7) -> Invalid Entry! | I17: 2 | J17: =IF(G17=$K$16,$L$16,$L$17) -> 1 | K17: No | L17: 1
A18: =A17+1 -> 7 | D18: Engagement | E18: Does the local government engage you during disasters? | F18: Consider the level of communication and engagement | H18: =IF(OR(G18=$K$16,G18=$K$17),$K$8,$K$7) -> Invalid Entry! | I18: 2 | J18: =IF(G18=$K$16,$L$16,$L$17) -> 1
A19: 8 | D19: Resources | E19: Does the local government have the capacity and finance to respond to disasters? | F19: Are they able to respond to disasters? | H19: =IF(OR(G19=$K$11,G19=$K$12,G19=$K$13),$K$8,$K$7) -> Invalid Entry! | I19: 1 | J19: =IF(G19=$K$11,$L$11,IF(G19=$K$12,$L$12,$L$13)) -> 1 | K19: List 3 | L19: yes is good
A20: 9 | D20: Health | E20: Do your health services have sufficient capacity and finance? | F20: Are your health services able to meet your needs? | H20: =IF(OR(G20=$K$11,G20=$K$12,G20=$K$13),$K$8,$K$7) -> Invalid Entry! | I20: 1 | J20: =IF(G20=$K$11,$L$11,IF(G20=$K$12,$L$12,$L$13)) -> 1 | K20: Yes, and adequate | L20: 3
J21: ="" ->  | K21: Yes, but not adequate | L21: 2
A22: =A20+1 -> 10 | B22: 3 | C22: Infrastructure | D22: Water Storage | E22: Does the local government provide additional water storage during disasters? | F22: Consider possible options for water storage | H22: =IF(OR(G22=$K$11,G22=$K$12,G22=$K$13),$K$8,$K$7) -> Invalid Entry! | I22: 1 | J22: =IF(G22=$K$11,$L$11,IF(G22=$K$12,$L$12,$L$13)) -> 1 | K22: No | L22: 1
A23: =A22+1 -> 11 | D23: Green Infra | E23: Is there any green infrastructure to supplement blue infrastructure in your area? | F23: Consider natural dams/ponds, wetlands | H23: =IF(OR(G23=$K$11,G23=$K$12,G23=$K$13),$K$8,$K$7) -> Invalid Entry! | I23: 1 | J23: 1
A24: 12 | D24: Roads & Transport | E24: Are your roads and transport infrastructure adequately maintained? | F24: Consider local government actions | H24: =IF(OR(G24=$K$16,G24=$K$17),$K$8,$K$7) -> Invalid Entry! | I24: 2 | J24: =IF(G24=$K$16,$L$16,$L$17) -> 1
A25: 13 | D25: Maintenance | E25: Does the local government have the capacity and finance to manage and maintain infrastructure? | F25: Consider local government actions | H25: =IF(OR(G25=$K$16,G25=$K$17),$K$8,$K$7) -> Invalid Entry! | I25: 2 | J25: =IF(G25=$K$16,$L$16,$L$17) -> 1
A26: 14 | D26: Housing / Shelter | E26: During flood events do you have access to alternative shelter? | F26: Consider community halls or shelters | H26: =IF(OR(G26=$K$16,G26=$K$17),$K$8,$K$7) -> Invalid Entry! | I26: 2 | J26: =IF(G26=$K$16,$L$16,$L$17) -> 1
J27: ="" -> 
A28: =A26+1 -> 15 | B28: 4 | C28: Natural Resources | D28: Land | E28: Do you have access to alternative land that you can use in the case of emergencies (such as floods)? | F28: Consider land in higher ground or in a different location | H28: =IF(OR(G28=$K$16,G28=$K$17),$K$8,$K$7) -> Invalid Entry! | I28: 2 | J28: =IF(G28=$K$16,$L$16,$L$17) -> 1
A29: 16 | D29: Water Resources | E29: Do you have access to alternative water that you can use in the case of emergencies (such as droughts)? | F29: Consider water to supplement your main water supply | H29: =IF(OR(G29=$K$16,G29=$K$17),$K$8,$K$7) -> Invalid Entry! | I29: 2 | J29: =IF(G29=$K$16,$L$16,$L$17) -> 1
A30: 17 | D30: Ecosystems | E30: Are the ecosystems in your area adequately managed? | F30: Consider parks, wetlands, forests, rivers, etc. | H30: =IF(OR(G30=$K$16,G30=$K$17),$K$8,$K$7) -> Invalid Entry! | I30: 2 | J30: =IF(G30=$K$16,$L$16,$L$17) -> 1
A31: 18 | D31: Soil | E31: Do you have access to fertilizers, crop (seed) varieties and/or alternative livestock breeds? | F31: Consider ways to supplement inadequate soil | H31: =IF(OR(G31=$K$16,G31=$K$17),$K$8,$K$7) -> Invalid Entry! | I31: 2 | J31: =IF(G31=$K$16,$L$16,$L$17) -> 1
J32: ="" -> 
A33: =A31+1 -> 19 | B33: 5 | C33: Financial Resources | D33: Finance | E33: Do you have access to a bank account or community fund to support your livelihood? | F33: This includes resources to get you through tough times | H33: =IF(OR(G33=$K$20,G33=$K$21,G33=$K$22),$K$8,$K$7) -> Invalid Entry! | I33: 3 | J33: =IF(G33=$K$20,$L$20,IF(G33=$K$21,$L$21,$L$22)) -> 1
A34: =A33+1 -> 20 | D34: Insurance | E34: Do you have access to insurance to assist you in emergencies? | F34: Consider insurance to get you through tough times | H34: =IF(OR(G34=$K$20,G34=$K$21,G34=$K$22),$K$8,$K$7) -> Invalid Entry! | I34: 3 | J34: =IF(G34=$K$20,$L$20,IF(G34=$K$21,$L$21,$L$22)) -> 1
B36: FUTURE ADAPTIVE CAPACITY | K36: List 4
B37: NOTE: THIS SECTION SHOULD BE COMPLETED BY THE PROJECT ASSESSOR BASED ON CONFIRMED PROJECT PIPELINE/COMMITMENTS (WHICH SHOULD BE MADE AVAILABLE ON REQUEST). | K37: Yes
B38: Do you think that future adaptive capacity will be similar to current adaptive capacity? | G38: Yes | K38: No
B39: NOTE: ONCE YOU SELECT AN OPTION, PLEASE CLICK ON "UPDATE". SHOULD YOU WISH TO CHANGE YOUR RESPONSE TO THE QUESTION ABOVE, PLEASE REMEMBER TO CLICK THE "UPDATE "BUTTON" AGAIN. PLEASE NOTE THAT THIS BUTTON WILL ERASE ALL RESPONSES THAT HAVE BEEN ENTERED MANUALLY, AND WILL CHANGE ALL RESPONSES TO DEFAULT!!
B40: Adaptive Capacity | E40: Question | F40: Comments/Description | G40: Answer? | I40: list? | J40: Rating? | K40: Blank Answer? | L40: Default Answer?
B41: 1 | C41: Human | D41: Climate Info | E41: Will you have access to climate-related information to enable adaptation and resilience? | F41: This includes info/skills on temperature, rainfall, droughts and/or floods | H41: =IF(OR(G41=$K$11,G41=$K$12,G41=$K$13),$K$8,$K$7) -> Invalid Entry! | I41: 1 | J41: =IF(G41=$K$11,$L$11,IF(G41=$K$12,$L$12,$L$13)) -> 1 | K41: ="" ->  | L41: =IF($G$38=$K$37,G11,K41) -> 
D42: Climate Smart Agr | E42: Will you have access to information about climate-smart agriculture? | F42: This includes info/skills on temperature, rainfall, droughts and/or floods | H42: =IF(OR(G42=$K$16,G42=$K$17),$K$8,$K$7) -> Invalid Entry! | I42: 2 | J42: =IF(G42=$K$16,$L$16,$L$17) -> 1 | K42: ="" ->  | L42: =IF($G$38=$K$37,G12,K42) -> 
D43: EWS Info | E43: Will you have skills and information on how to react/respond to an early warning system (EWS)? | F43: This includes info/skills on temperature, rainfall, droughts and/or floods | H43: =IF(OR(G43=$K$16,G43=$K$17),$K$8,$K$7) -> Invalid Entry! | I43: 2 | J43: =IF(G43=$K$16,$L$16,$L$17) -> 1 | K43: ="" ->  | L43: =IF($G$38=$K$37,G13,K43) -> 
D44: Women | E44: Will women have skills and information about climate-smart agriculture? | F44: nb - specific to women | H44: =IF(OR(G44=$K$11,G44=$K$12,G44=$K$13),$K$8,$K$7) -> Invalid Entry! | I44: 1 | J44: =IF(G44=$K$11,$L$11,IF(G44=$K$12,$L$12,$L$13)) -> 1 | K44: ="" ->  | L44: =IF($G$38=$K$37,G14,K44) -> 
D45: Health Awareness | E45: Will you be provided with information regarding your families’ health? | F45: This includes waterborne and vector diseases | H45: =IF(OR(G45=$K$11,G45=$K$12,G45=$K$13),$K$8,$K$7) -> Invalid Entry! | I45: 1 | J45: =IF(G45=$K$11,$L$11,IF(G45=$K$12,$L$12,$L$13)) -> 1 | K45: ="" ->  | L45: =IF($G$38=$K$37,G15,K45) -> 
J46: ="" ->  | K46: ="" ->  | L46: ="" -> 
B47: 2 | C47: Institutions | D47: EWS | E47: Will there be an early warning system (EWS) in your community? | F47: Consider an EWS that warns you during disasters | H47: =IF(OR(G47=$K$16,G47=$K$17),$K$8,$K$7) -> Invalid Entry! | I47: 2 | J47: =IF(G47=$K$16,$L$16,$L$17) -> 1 | K47: ="" ->  | L47: =IF($G$38=$K$37,G17,K47) -> 
D48: Engagement | E48: Will the local government engage you during disasters? | F48: Consider the level of communication and engagement | H48: =IF(OR(G48=$K$16,G48=$K$17),$K$8,$K$7) -> Invalid Entry! | I48: 2 | J48: =IF(G48=$K$16,$L$16,$L$17) -> 1 | K48: ="" ->  | L48: =IF($G$38=$K$37,G18,K48) -> 
D49: Resources | E49: Will the local government have the capacity and finance to respond to disasters? | F49: Will they be able to respond to disasters? | H49: =IF(OR(G49=$K$11,G49=$K$12,G49=$K$13),$K$8,$K$7) -> Invalid Entry! | I49: 1 | J49: =IF(G49=$K$11,$L$11,IF(G49=$K$12,$L$12,$L$13)) -> 1 | K49: ="" ->  | L49: =IF($G$38=$K$37,G19,K49) -> 
D50: Health | E50: Will your health services have sufficient capacity and finance? | F50: Will your health services be able to meet your needs? | H50: =IF(OR(G50=$K$11,G50=$K$12,G50=$K$13),$K$8,$K$7) -> Invalid Entry! | I50: 1 | J50: =IF(G50=$K$11,$L$11,IF(G50=$K$12,$L$12,$L$13)) -> 1 | K50: ="" ->  | L50: =IF($G$38=$K$37,G20,K50) -> 
J51: ="" ->  | K51: ="" ->  | L51: ="" -> 
B52: 3 | C52: Infrastructure | D52: Water Storage | E52: Will the local government provide additional water storage during disasters? | F52: Consider possible options for water storage | H52: =IF(OR(G52=$K$11,G52=$K$12,G52=$K$13),$K$8,$K$7) -> Invalid Entry! | I52: 1 | J52: =IF(G52=$K$11,$L$11,IF(G52=$K$12,$L$12,$L$13)) -> 1 | K52: ="" ->  | L52: =IF($G$38=$K$37,G22,K52) -> 
D53: Green Infra | E53: Will there be any green infrastructure to supplement blue infrastructure in your area? | F53: Consider natural dams/ponds, wetlands | H53: =IF(OR(G53=$K$11,G53=$K$12,G53=$K$13),$K$8,$K$7) -> Invalid Entry! | I53: 1 | J53: 1 | K53: ="" ->  | L53: =IF($G$38=$K$37,G23,K53) -> 
D54: Roads & Transport | E54: Will the roads and transport infrastructure be adequately maintained? | F54: Consider local government actions | H54: =IF(OR(G54=$K$16,G54=$K$17),$K$8,$K$7) -> Invalid Entry! | I54: 2 | J54: =IF(G54=$K$16,$L$16,$L$17) -> 1 | K54: ="" ->  | L54: =IF($G$38=$K$37,G24,K54) -> 
D55: Maintenance | E55: Does the local government have the capacity and finance to manage and maintain infrastructure? | F55: Consider local government actions | H55: =IF(OR(G55=$K$16,G55=$K$17),$K$8,$K$7) -> Invalid Entry! | I55: 2 | J55: =IF(G55=$K$16,$L$16,$L$17) -> 1 | K55: ="" ->  | L55: =IF($G$38=$K$37,G25,K55) -> 
D56: Housing / Shelter | E56: During flood events will you have access to alternative shelter? | F56: Consider community halls or shelters | H56: =IF(OR(G56=$K$16,G56=$K$17),$K$8,$K$7) -> Invalid Entry! | I56: 2 | J56: =IF(G56=$K$16,$L$16,$L$17) -> 1 | K56: ="" ->  | L56: =IF($G$38=$K$37,G26,K56) -> 
J57: ="" ->  | K57: ="" ->  | L57: ="" -> 
B58: 4 | C58: Natural Resources | D58: Land | E58: Will you have access to alternative land that you can use in the case of emergencies (such as floods)? | F58: Consider land in higher ground or in a different location | H58: =IF(OR(G58=$K$16,G58=$K$17),$K$8,$K$7) -> Invalid Entry! | I58: 2 | J58: =IF(G58=$K$16,$L$16,$L$17) -> 1 | K58: ="" ->  | L58: =IF($G$38=$K$37,G28,K58) -> 
D59: Water Resources | E59: Will you have access to alternative water that you can use in the case of emergencies (such as droughts)? | F59: Consider water to supplement your main water supply | H59: =IF(OR(G59=$K$16,G59=$K$17),$K$8,$K$7) -> Invalid Entry! | I59: 2 | J59: =IF(G59=$K$16,$L$16,$L$17) -> 1 | K59: ="" ->  | L59: =IF($G$38=$K$37,G29,K59) -> 
D60: Ecosystems | E60: Will the ecosystems in your area be adequately managed? | F60: Consider parks, wetlands, forests, rivers, etc. | H60: =IF(OR(G60=$K$16,G60=$K$17),$K$8,$K$7) -> Invalid Entry! | I60: 2 | J60: =IF(G60=$K$16,$L$16,$L$17) -> 1 | K60: ="" ->  | L60: =IF($G$38=$K$37,G30,K60) -> 
D61: Soil | E61: Will you have access to fertilizers, crop (seed) varieties and/or alternative livestock breeds? | F61: Consider ways to supplement inadequate soil | H61: =IF(OR(G61=$K$16,G61=$K$17),$K$8,$K$7) -> Invalid Entry! | I61: 2 | J61: =IF(G61=$K$16,$L$16,$L$17) -> 1 | K61: ="" ->  | L61: =IF($G$38=$K$37,G31,K61) -> 
J62: ="" ->  | K62: ="" ->  | L62: ="" -> 
B63: 5 | C63: Financial Resources | D63: Finance | E63: Will you have access to a bank account or community fund to support your livelihood? | F63: This includes resources to get you through tough times | H63: =IF(OR(G63=$K$20,G63=$K$21,G63=$K$22),$K$8,$K$7) -> Invalid Entry! | I63: 3 | J63: =IF(G63=$K$20,$L$20,IF(G63=$K$21,$L$21,$L$22)) -> 1 | K63: ="" ->  | L63: =IF($G$38=$K$37,G33,K63) -> 
D64: Insurance | E64: Will you have access to insurance to assist you in emergencies? | F64: Consider insurance to get you through tough times | H64: =IF(OR(G64=$K$20,G64=$K$21,G64=$K$22),$K$8,$K$7) -> Invalid Entry! | I64: 3 | J64: =IF(G64=$K$20,$L$20,IF(G64=$K$21,$L$21,$L$22)) -> 1 | K64: ="" ->  | L64: =IF($G$38=$K$37,G34,K64) -> 

Sheet RVAT_Output
C5: To view a synthesis of all the responses, click on the tabs below:
C10: To view the output of the risk and vulnerability assessment, click on the tabs below:
B30: HAZARD
B32: CURRENT
B33: The table below illustrates the current climate hazards | Y33: The graph below illustrates the current climate hazards
C35: =C278 -> Temperature | D35: =D278 -> Seasons | K35: Annual Trends | Q35: Hot days
C36: =C279 -> Rainfall | D36: =D279 -> Seasons | K36: =K279 -> Annual Trends | Q36: =Q279 -> Heavy Rainfall
C37: =C280 -> Droughts | D37: =D280 -> Events | I37: =I280 -> Timing | N37: =N280 -> Extent | S37: =S280 -> Effect
C38: =C281 -> Floods | D38: =D281 -> Events | I38: =I281 -> Timing | N38: =N281 -> Extent | S38: =S281 -> Effect
C39: =C282 -> Other Factors | D39: =D282 -> Fire | G39: =G282 -> Snow | K39: =K282 -> Hail | N39: =N282 -> Tornado | Q39: =Q282 -> Earthquake | U39: =U282 -> Volcano
H41: Legend: | K41: Low | N41: Medium | R41: High
B44: FUTURE
B45: The table below illustrates the future climate hazards | Y45: The graph below illustrates the future climate hazards
C47: =C278 -> Temperature | D47: =D290 -> Seasons | K47: Annual Trends | Q47: Changes
C48: =C279 -> Rainfall | D48: =D291 -> Seasons | K48: Annual Trends | Q48: Changes
C49: =C280 -> Droughts | D49: =D292 -> Events | I49: Timing | N49: Extent | S49: Effect
C50: =C281 -> Floods | D50: =D293 -> Events | I50: Timing | N50: Extent | S50: Effect
C51: =C282 -> Other Factors | D51: =D294 -> Fire | G51: Snow | K51: Hail | N51: Tornado | Q51: Earthquake | U51: Volcano
H53: Legend: | K53: Low | N53: Medium | R53: High
B56: EXPOSURE
B58: CURRENT
B59: The table below illustrates the current levels of exposure | Y59: The graph below illustrates the current levels of exposure
C61: =C303 -> Livelihoods | D61: Food security | K61: =K303 -> Crops | Q61: =Q303 -> Livestock
C62: Health & Safety | D62: Water Borne Diseases | K62: =K304 -> Vector Diseases | Q62: =Q304 -> Safety
C63: Services | D63: Housing | H63: =H305 -> Land | L63: =L305 -> Community | P63: =P305 -> Sanitation | T63: =T305 -> Energy
C64: Water Supply | D64: Access | H64: =H306 -> Quality | L64: =L306 -> Droughts | P64: =P306 -> Floods | T64: =T306 -> Other Climate Hazards
C65: Infrastructure | D65: Water Supply | G65: =G307 -> Water Treatment | K65: =K307 -> Water Storage | N65: =N307 -> Ecol & Green Infra | Q65: =Q307 -> Energy | U65: =U307 -> Roads & Public Infra
H67: Legend: | K67: Low | N67: Medium | R67: High
B70: FUTURE
B71: The table below illustrates the future levels of exposure | Y71: The graph below illustrates the future levels of exposure
C73: =C315 -> Livelihoods | D73: =D303 -> Food security | K73: Crops | Q73: Livestock
C74: =C316 -> Health & Safety | D74: =D304 -> Water Borne Diseases | K74: Vector Diseases | Q74: Safety
C75: =C317 -> Services | D75: =D305 -> Housing | H75: Land | L75: Community | P75: Sanitation | T75: Energy
C76: =C318 -> Water Supply | D76: =D306 -> Access | H76: Quality | L76: Droughts | P76: Floods | T76: Other Climate Hazards
C77: =C319 -> Infrastructure | D77: =D307 -> Water Supply | G77: Water Treatment | K77: Water Storage | N77: Ecol & Green Infra | Q77: Energy | U77: Roads & Public Infra
H79: Legend: | K79: Low | N79: Medium | R79: High
B83: SENSITIVITY
B85: CURRENT
B86: The table below illustrates the current levels of sensitivity | Y86: The graph below illustrates the current levels of sensitivity
C88: =C322 -> Human | D88: Diverse Livelihoods | H88: =H322 -> Climate Information | L88: =L322 -> Agric Information | P88: =P322 -> Women | T88: =T322 -> Health
C89: Institutions | D89: Water user forums | I89: =I323 -> Farming forums | N89: =N323 -> Weather data | S89: =S323 -> Health
C90: Infrastructure | D90: Water Storage | H90: =H324 -> Water Supply | L90: =L324 -> Roads & Transport | P90: =P324 -> Energy | T90: =T324 -> Housing / Shelter
C91: Natural Resources | D91: Land | I91: =I325 -> Water Resources | N91: =N325 -> Ecosystems | S91: =S325 -> Soil
C92: Financial Resources | D92: Sustainable Income | N92: =N326 -> Diverse Income
H94: Legend: | K94: Low | N94: Medium | R94: High
B97: FUTURE
B98: The table below illustrates the future levels of sensitivity | Y98: The graph below illustrates the future levels of sensitivity
C100: =C334 -> Human | D100: =D322 -> Diverse Livelihoods | H100: Climate Information | L100: Agric Information | P100: Women | T100: Health
C101: =C335 -> Institutions | D101: =D323 -> Water user forums | I101: Farming forums | N101: Weather data | S101: Health
C102: =C336 -> Infrastructure | D102: =D324 -> Water Storage | H102: Water Supply | L102: Roads & Transport | P102: Energy | T102: Housing / Shelter
C103: =C337 -> Natural Resources | D103: =D325 -> Land | I103: Water Resources | N103: Ecosystems | S103: Soil
C104: =C338 -> Financial Resources | D104: =D326 -> Sustainable Income | N104: Diverse Income
H106: Legend: | K106: Low | N106: Medium | R106: High
B110: ADAPTIVE CAPACITY
B112: CURRENT
B113: The table below illustrates the current adaptive capacity | Y113: The graph below illustrates the current adaptive capacity
C115: =C341 -> Human | D115: Climate Info | H115: =H341 -> Climate Smart Agr | L115: =L341 -> EWS Info | P115: =P341 -> Women | T115: =T341 -> Health Awareness
C116: Institutions | D116: EWS | I116: =I342 -> Engagement | N116: =N342 -> Resources | S116: =S342 -> Health
C117: Infrastructure | D117: Water Storage | H117: =H343 -> Green Infra | L117: =L343 -> Roads & Transport | P117: =P343 -> Maintenance | T117: =T343 -> Housing / Shelter
C118: Natural Resources | D118: Land | I118: =I344 -> Water Resources | N118: =N344 -> Ecosystems | S118: =S344 -> Soil
C119: Financial Resources | D119: Finance | N119: =N345 -> Insurance
H121: Legend: | K121: Good | N121: Ave | R121: Poor
B124: FUTURE
B125: The table below illustrates the future adaptive capacity | Y125: The graph below illustrates the future adaptive capacity
C127: =C353 -> Human | D127: =D341 -> Climate Info | H127: Climate Smart Agr | L127: EWS Info | P127: Women | T127: Health Awareness
C128: =C354 -> Institutions | D128: =D342 -> EWS | I128: Engagement | N128: Resources | S128: Health
C129: =C355 -> Infrastructure | D129: =D343 -> Water Storage | H129: Green Infra | L129: Roads & Transport | P129: Maintenance | T129: Housing / Shelter
C130: =C356 -> Natural Resources | D130: =D344 -> Land | I130: Water Resources | N130: Ecosystems | S130: Soil
C131: =C357 -> Financial Resources | D131: =D345 -> Finance | N131: Insurance
H133: Legend: | K133: Good | N133: Ave | R133: Poor
B138: VULNERABILITY
B141: CURRENT
B142: The table below illustrates the current vulnerability - viewed by the same categories as 'sensitivity' | Y142: The graph below illustrates the current levels of vulnerability
B143: and 'adaptive capacity'
D145: =D360 -> Human | H145: =H360 -> Institutions | L145: =L360 -> Infrastructure | P145: =P360 -> Natural Resources | T145: =T360 -> Financial Resources
B147: The table below illustrates the current vulnerability - viewed by the same categories as 'exposure'
D149: =$AO$285 -> Livelihoods | H149: =$AO$286 -> Health & Safety | L149: =$AO$287 -> Services | P149: =$AO$288 -> Water Supply | T149: =$AO$289 -> Infrastructure
H151: Legend: | K151: Low | N151: Medium | R151: High
B153: The table below illustrates the current levels of vulnerability in more detail | Y153: The graph below illustrates the current levels of vulnerability
C155: =C379 -> Livelihoods | D155: =D373 -> Food security | K155: =K373 -> Crops | Q155: =Q373 -> Livestock
C156: =C380 -> Health & Safety | D156: =D374 -> Water Borne Diseases | K156: =K374 -> Vector Diseases | Q156: =Q374 -> Safety
C157: =C381 -> Services | D157: =D375 -> Housing | H157: =H375 -> Land | L157: =L375 -> Community | P157: =P375 -> Sanitation | T157: =T375 -> Energy
C158: =C382 -> Water Supply | D158: =D376 -> Access | H158: =H376 -> Quality | L158: =L376 -> Droughts | P158: =P376 -> Floods | T158: =T376 -> Other Climate Hazards
C159: =C383 -> Infrastructure | D159: =D377 -> Water Supply | G159: =G377 -> Water Treatment | K159: =K377 -> Water Storage | N159: =N377 -> Ecol & Green Infra | Q159: =Q377 -> Energy | U159: =U377 -> Roads & Public Infra
H161: Legend: | K161: Low | N161: Medium | R161: High
B164: FUTURE
B165: The table below illustrates the future vulnerability - viewed by the same categories as 'sensitivity' | Y165: The graph below illustrates the future levels of vulnerability
B166: and 'adaptive capacity'
D168: =D145 -> Human | H168: Institutions | L168: Infrastructure | P168: Natural Resources | T168: Financial Resources
B170: The table below illustrates the future vulnerability - viewed by the same categories as 'exposure'
D172: =D149 -> Livelihoods | H172: Health & Safety | L172: Services | P172: Water Supply | T172: Infrastructure
H174: Legend: | K174: Low | N174: Medium | R174: High
B176: The table below illustrates the future levels of vulnerability in more detail | Y176: The graph below illustrates the future levels of vulnerability
C178: =C155 -> Livelihoods | D178: =D155 -> Food security | K178: Crops | Q178: Livestock
C179: Health & Safety | D179: =D156 -> Water Borne Diseases | K179: Vector Diseases | Q179: Safety
C180: Services | D180: =D157 -> Housing | H180: Land | L180: Community | P180: Sanitation | T180: Energy
C181: Water Supply | D181: =D158 -> Access | H181: Quality | L181: Droughts | P181: Floods | T181: Other Climate Hazards
C182: Infrastructure | D182: =D159 -> Water Supply | G182: Water Treatment | K182: Water Storage | N182: Ecol & Green Infra | Q182: Energy | U182: Roads & Public Infra
H184: Legend: | K184: Low | N184: Medium | R184: High
B190: RISK
B193: CURRENT
B194: The table below illustrates the current levels of risk, by category | Y194: The figure below illustrates the current levels of risk, by category
D196: =$AO$285 -> Livelihoods | H196: =$AO$286 -> Health & Safety | L196: =$AO$287 -> Services | P196: =$AO$288 -> Water Supply | T196: =$AO$289 -> Infrastructure
H198: Legend: | K198: Low | N198: Medium | R198: High
B207: The table below illustrates the current levels of risk | Y207: The figure below illustrates the current levels of risk
C209: =C399 -> Livelihoods | D209: Food security | K209: =K399 -> Crops | Q209: =Q399 -> Livestock
C210: Health & Safety | D210: Water Borne Diseases | K210: =K400 -> Vector Diseases | Q210: =Q400 -> Safety
C211: Services | D211: Housing | H211: =H401 -> Land | L211: =L401 -> Community | P211: =P401 -> Sanitation | T211: =T401 -> Energy
C212: Water Supply | D212: Access | H212: =H402 -> Quality | L212: =L402 -> Droughts | P212: =P402 -> Floods | T212: =T402 -> Other Climate Hazards
C213: Infrastructure | D213: Water Supply | G213: =G403 -> Water Treatment | K213: =K403 -> Water Storage | N213: =N403 -> Ecol & Green Infra | Q213: =Q403 -> Energy | U213: =U403 -> Roads & Public Infra
H215: Legend: | K215: Low | N215: Medium | R215: High
B219: FUTURE
B220: The table below illustrates the future levels of risk, by category | Y220: The graph below illustrates the future levels of risk, by category
D222: =$AO$285 -> Livelihoods | H222: =$AO$286 -> Health & Safety | L222: =$AO$287 -> Services | P222: =$AO$288 -> Water Supply | T222: =$AO$289 -> Infrastructure
H224: Legend: | K224: Low | N224: Medium | R224: High
B233: The table below illustrates the future levels of risk | Y233: The figure below illustrates the future levels of risk
C235: =C399 -> Livelihoods | D235: Food security | K235: =K399 -> Crops | Q235: =Q399 -> Livestock
C236: Health & Safety | D236: Water Borne Diseases | K236: =K400 -> Vector Diseases | Q236: =Q400 -> Safety
C237: Services | D237: Housing | H237: =H401 -> Land | L237: =L401 -> Community | P237: =P401 -> Sanitation | T237: =T401 -> Energy
C238: Water Supply | D238: Access | H238: =H402 -> Quality | L238: =L402 -> Droughts | P238: =P402 -> Floods | T238: =T402 -> Other Climate Hazards
C239: Infrastructure | D239: Water Supply | G239: =G403 -> Water Treatment | K239: =K403 -> Water Storage | N239: =N403 -> Ecol & Green Infra | Q239: =Q403 -> Energy | U239: =U403 -> Roads & Public Infra
H241: Legend: | K241: Low | N241: Medium | R241: High
B277: HAZARDS - CURRENT
C278: =$X$422 -> Temperature | D278: =Y422 -> Seasons | K278: =Y423 -> Annual Trends | Q278: =Y424 -> Hot days | Y278: Current Hazard | AC278: =AC421 -> Exposure | AG278: =AI421 -> Sensitivity | AK278: Adaptive Capacity | AN278: Current Vulnerability | AR278: Current Risk
C279: =$X$426 -> Rainfall | D279: =Y426 -> Seasons | K279: =Y427 -> Annual Trends | Q279: =Y428 -> Heavy Rainfall | Y279: 1 | Z279: =X422 -> Temperature | AA279: =Y422 -> Seasons | AB279: =AB422 -> High | AC279: =AC422 -> 1 | AD279: =AD422 -> Livelihoods | AE279: =AE422 -> Food security | AF279: =AH422 -> Low | AG279: =AI422 -> 1 | AH279: =AJ422 -> Human | AI279: =AK422 -> Diverse Livelihoods | AJ279: =AN422 -> High | AK279: =AP422 -> Climate Info | AL279: =AS422 -> Poor | AO279: =$AH$279 -> Human | AP279: =BI426 -> High | AS279: =AO285 -> Livelihoods | AT279: =BI433 -> Med
C280: =$X$430 -> Droughts | D280: =Y430 -> Events | I280: =Y431 -> Timing | N280: =Y432 -> Extent | S280: =Y433 -> Effect | AA280: =Y423 -> Annual Trends | AB280: =AB423 -> High | AE280: =AE423 -> Crops | AF280: =AH423 -> Low | AI280: =AK423 -> Climate Information | AJ280: =AN423 -> High | AK280: Climate Smart Agr | AL280: =AS423 -> Poor | AO280: =$AH$285 -> Institutions | AP280: High | AS280: Health & Safety | AT280: Low
C281: =$X$435 -> Floods | D281: =Y435 -> Events | I281: =Y436 -> Timing | N281: =Y437 -> Extent | S281: =Y438 -> Effect | AA281: =Y424 -> Hot days | AB281: =AB424 -> Low | AE281: Livestock | AF281: =AH424 -> Low | AI281: Agric Information | AJ281: =AN424 -> High | AK281: EWS Info | AL281: =AS424 -> Poor | AO281: =$AH$290 -> Infrastructure | AP281: High | AS281: Services | AT281: Med
C282: =$X$440 -> Other Factors | D282: =Y440 -> Fire | G282: =Y441 -> Snow | K282: =Y442 -> Hail | N282: =Y443 -> Tornado | Q282: =Y444 -> Earthquake | U282: =Y445 -> Volcano | AD282: =AD425 ->  | AI282: Women | AJ282: =AN425 -> High | AK282: Women | AL282: =AS425 -> Poor | AO282: =$AH$296 -> Natural Resources | AP282: High | AS282: Water Supply | AT282: Med
B283: CURRENT | Y283: 2 | Z283: =X426 -> Rainfall | AA283: =Y426 -> Seasons | AB283: =AB426 -> High | AC283: =AC426 -> 2 | AD283: =AD426 -> Health & Safety | AE283: Water Borne Diseases | AF283: =AH426 -> Low | AI283: Health | AJ283: =AN426 -> High | AK283: Health Awareness | AL283: =AS426 -> Poor | AO283: =$AH$301 -> Financial Resources | AP283: High | AS283: Infrastructure | AT283: Med
C284: =$X$422 -> Temperature | D284: =AB279 -> High | K284: =AB280 -> High | Q284: =AB281 -> Low | AA284: =Y427 -> Annual Trends | AB284: =AB427 -> High | AE284: Vector Diseases | AF284: =AH427 -> Low | AH284: =AJ427 -> 
C285: =$X$426 -> Rainfall | D285: =AB283 -> High | K285: =AB284 -> High | Q285: =AB285 -> Low | AA285: =Y428 -> Heavy Rainfall | AB285: =AB428 -> Low | AE285: Safety | AF285: =AH428 -> Low | AG285: =AI428 -> 2 | AH285: =AJ428 -> Institutions | AI285: Water user forums | AJ285: =AN428 -> High | AK285: EWS | AL285: =AS428 -> Poor | AO285: =$AU$422 -> Livelihoods | AP285: =BI420 -> High
C286: =$X$430 -> Droughts | D286: =AB287 -> Low | I286: =AB288 -> Low | N286: =AB289 -> Low | S286: =AB290 -> Low | AD286: =AD429 ->  | AI286: Farming forums | AJ286: =AN429 -> High | AK286: Engagement | AL286: =AS429 -> Poor | AO286: =$AU$426 -> Health & Safety | AP286: High
C287: =$X$435 -> Floods | D287: =AB292 -> Low | I287: =AB293 -> Low | N287: =AB294 -> Low | S287: =AB295 -> Low | Y287: 3 | Z287: =X430 -> Droughts | AA287: =Y430 -> Events | AB287: =AB430 -> Low | AC287: =AC430 -> 3 | AD287: =AD430 -> Services | AE287: Housing | AF287: =AH430 -> High | AI287: Weather data | AJ287: =AN430 -> High | AK287: Resources | AL287: =AS430 -> Poor | AO287: =$AU$430 -> Services | AP287: High
C288: =$X$440 -> Other Factors | D288: =AB297 -> Low | G288: =AB298 -> Low | K288: =AB299 -> Low | N288: =AB300 -> Low | Q288: =AB301 -> Low | U288: =AB302 -> Low | AA288: =Y431 -> Timing | AB288: =AB431 -> Low | AE288: Land | AF288: =AH431 -> High | AI288: Health | AJ288: =AN431 -> High | AK288: Health | AL288: =AS431 -> Poor | AO288: =$AU$436 -> Water Supply | AP288: High
B289: HAZARDS - FUTURE | AA289: =Y432 -> Extent | AB289: =AB432 -> Low | AE289: Community | AF289: =AH432 -> Low | AH289: =AJ432 ->  | AO289: =$AU$442 -> Infrastructure | AP289: High
C290: =$X$422 -> Temperature | D290: =$AA$324 -> Seasons | K290: =$AA$325 -> Annual Trends | Q290: =$AA$326 -> Changes | AA290: =Y433 -> Effect | AB290: =AB433 -> Low | AE290: Sanitation | AF290: =AH433 -> High | AG290: =AI433 -> 3 | AH290: =AJ433 -> Infrastructure | AI290: Water Storage | AJ290: =AN433 -> High | AK290: Water Storage | AL290: =AS433 -> Poor
C291: =$X$426 -> Rainfall | D291: =$AA$328 -> Seasons | K291: =$AA$329 -> Annual Trends | Q291: =$AA$330 -> Changes | AE291: Energy | AF291: =AH434 -> High | AI291: Water Supply | AJ291: =AN434 -> High | AK291: Green Infra | AL291: =AS434 -> Poor
C292: =$X$430 -> Droughts | D292: =$AA$332 -> Events | I292: =$AA$333 -> Timing | N292: =$AA$334 -> Extent | S292: =$AA$335 -> Effect | Y292: 4 | Z292: =X435 -> Floods | AA292: =Y435 -> Events | AB292: =AB435 -> Low | AD292: =AD435 ->  | AI292: Roads & Transport | AJ292: =AN435 -> High | AK292: Roads & Transport | AL292: =AS435 -> Poor | AN292: Current Vulnerability | AR292: Current Risk
C293: =$X$435 -> Floods | D293: =$AA$337 -> Events | I293: =$AA$338 -> Timing | N293: =$AA$339 -> Extent | S293: =$AA$340 -> Effect | AA293: =Y436 -> Timing | AB293: =AB436 -> Low | AC293: =AC436 -> 4 | AD293: =AD436 -> Water Supply | AE293: Access | AF293: =AH436 -> High | AI293: Energy | AJ293: =AN436 -> High | AK293: Maintenance | AL293: =AS436 -> Poor | AN293: =AD279 -> Livelihoods | AO293: =AE279 -> Food security | AP293: =AY422 -> High | AR293: =AN293 -> Livelihoods | AS293: =AO293 -> Food security | AT293: =BE422 -> Med
C294: =$X$440 -> Other Factors | D294: =$AA$342 -> Fire | G294: =$AA$343 -> Snow | K294: =$AA$344 -> Hail | N294: =$AA$345 -> Tornado | Q294: =$AA$346 -> Earthquake | U294: =$AA$347 -> Volcano | AA294: =Y437 -> Extent | AB294: =AB437 -> Low | AE294: Quality | AF294: =AH437 -> High | AI294: Housing / Shelter | AJ294: =AN437 -> High | AK294: Housing / Shelter | AL294: =AS437 -> Poor | AO294: =AE280 -> Crops | AP294: High | AS294: Crops | AT294: Med
B295: FUTURE | AA295: =Y438 -> Effect | AB295: =AB438 -> Low | AE295: Droughts | AF295: =AH438 -> Low | AH295: =AJ438 ->  | AO295: Livestock | AP295: High | AS295: Livestock | AT295: Med
C296: =$X$422 -> Temperature | D296: =AB324 -> High | K296: =AB325 -> High | Q296: =AB326 -> Low | AE296: Floods | AF296: =AH439 -> Low | AG296: =AI439 -> 4 | AH296: =AJ439 -> Natural Resources | AI296: Land | AJ296: =AN439 -> High | AK296: Land | AL296: =AS439 -> Poor | AN296: =AD282 -> 
C297: =$X$426 -> Rainfall | D297: =AB328 -> High | K297: =AB329 -> High | Q297: =AB330 -> Low | Y297: 5 | Z297: =X440 -> Other Factors | AA297: =Y440 -> Fire | AB297: =AB440 -> Low | AE297: Other Climate Hazards | AF297: =AH440 -> Low | AI297: Water Resources | AJ297: =AN440 -> High | AK297: Water Resources | AL297: =AS440 -> Poor | AN297: =AD283 -> Health & Safety | AO297: Water Borne Diseases | AP297: High | AR297: Health & Safety | AS297: Water Borne Diseases | AT297: Low
A298: Low | C298: =$X$430 -> Droughts | D298: =AB332 -> Low | I298: =AB333 -> Low | N298: =AB334 -> Low | S298: =AB335 -> Low | AA298: =Y441 -> Snow | AB298: Low | AD298: =AD441 ->  | AI298: Ecosystems | AJ298: =AN441 -> High | AK298: Ecosystems | AL298: =AS441 -> Poor | AO298: Vector Diseases | AP298: High | AS298: Vector Diseases | AT298: Low
A299: Med | C299: =$X$435 -> Floods | D299: =AB337 -> Low | I299: =AB338 -> Low | N299: =AB339 -> Low | S299: =AB340 -> Low | AA299: =Y442 -> Hail | AB299: Low | AC299: =AC442 -> 5 | AD299: =AD442 -> Infrastructure | AE299: Water Supply | AF299: =AH442 -> High | AI299: Soil | AJ299: =AN442 -> High | AK299: Soil | AL299: =AS442 -> Poor | AO299: Safety | AP299: High | AS299: Safety | AT299: Low
A300: High | C300: =$X$440 -> Other Factors | D300: =AB342 -> Low | G300: =AB343 -> Low | K300: =AB344 -> Low | N300: =AB345 -> Low | Q300: =AB346 -> Low | U300: =AB347 -> Low | AA300: =Y443 -> Tornado | AB300: Low | AE300: Water Treatment | AF300: High | AH300: =AJ443 ->  | AN300: =AD286 -> 
AA301: =Y444 -> Earthquake | AB301: Low | AE301: Water Storage | AF301: High | AG301: =AI444 -> 5 | AH301: =AJ444 -> Financial Resources | AI301: Sustainable Income | AJ301: =AN444 -> High | AK301: Finance | AL301: =AS444 -> Poor | AN301: =AD287 -> Services | AO301: Housing | AP301: High | AR301: Services | AS301: Housing | AT301: Med
B302: EXPOSURE | AA302: =Y445 -> Volcano | AB302: Low | AE302: Ecol & Green Infra | AF302: High | AI302: Diverse Income | AJ302: =AN445 -> High | AK302: Insurance | AL302: =AS445 -> Poor | AO302: Land | AP302: High | AS302: Land | AT302: Med
C303: =AD422 -> Livelihoods | D303: =AE279 -> Food security | K303: =AE280 -> Crops | Q303: =AE281 -> Livestock | AE303: Energy | AF303: Low | AO303: Community | AP303: High | AS303: Community | AT303: Low
C304: =AD426 -> Health & Safety | D304: =AE283 -> Water Borne Diseases | K304: =AE284 -> Vector Diseases | Q304: =AE285 -> Safety | AE304: Roads & Public Infra | AF304: Low | AO304: Sanitation | AP304: High | AS304: Sanitation | AT304: Med
C305: =AD430 -> Services | D305: =AE287 -> Housing | H305: =AE288 -> Land | L305: =AE289 -> Community | P305: =AE290 -> Sanitation | T305: =AE291 -> Energy | AO305: Energy | AP305: High | AS305: Energy | AT305: Med
C306: =AD436 -> Water Supply | D306: =AE293 -> Access | H306: =AE294 -> Quality | L306: =AE295 -> Droughts | P306: =AE296 -> Floods | T306: =AE297 -> Other Climate Hazards | AN306: =AD292 -> 
C307: =AD442 -> Infrastructure | D307: =AE299 -> Water Supply | G307: =AE300 -> Water Treatment | K307: =AE301 -> Water Storage | N307: =AE302 -> Ecol & Green Infra | Q307: =AE303 -> Energy | U307: =AE304 -> Roads & Public Infra | AN307: =AD293 -> Water Supply | AO307: Access | AP307: High | AR307: Water Supply | AS307: Access | AT307: Med
B308: CURRENT | AO308: Quality | AP308: High | AS308: Quality | AT308: High
C309: =C303 -> Livelihoods | D309: =$AF$279 -> Low | K309: =$AF$280 -> Low | Q309: =$AF$281 -> Low | AO309: Droughts | AP309: High | AS309: Droughts | AT309: Med
C310: =C304 -> Health & Safety | D310: =$AF$283 -> Low | K310: =$AF$284 -> Low | Q310: =$AF$285 -> Low | AO310: Floods | AP310: High | AS310: Floods | AT310: Low
C311: =C305 -> Services | D311: =$AF$287 -> High | H311: =$AF$288 -> High | L311: =$AF$289 -> Low | P311: =$AF$290 -> High | T311: =$AF$291 -> High | AO311: Other Climate Hazards | AP311: High | AS311: Other Climate Hazards | AT311: Low
C312: =C306 -> Water Supply | D312: =$AF$293 -> High | H312: =$AF$294 -> High | L312: =$AF$295 -> Low | P312: =$AF$296 -> Low | T312: =$AF$297 -> Low | AN312: =AD298 -> 
C313: =C307 -> Infrastructure | D313: =$AF$299 -> High | G313: =$AF$300 -> High | K313: =$AF$301 -> High | N313: =$AF$302 -> High | Q313: =$AF$303 -> Low | U313: =$AF$304 -> Low | AN313: =AD299 -> Infrastructure | AO313: Water Supply | AP313: High | AR313: Infrastructure | AS313: Water Supply | AT313: Med
B314: FUTURE | AO314: Water Treatment | AP314: High | AS314: Water Treatment | AT314: Med
C315: =C309 -> Livelihoods | D315: =$AF$324 -> Low | K315: =$AF$325 -> Low | Q315: =$AF$326 -> Low | AO315: Water Storage | AP315: High | AS315: Water Storage | AT315: Med
C316: =C310 -> Health & Safety | D316: =$AF$328 -> Low | K316: =$AF$329 -> Low | Q316: =$AF$330 -> Low | AO316: Ecol & Green Infra | AP316: High | AS316: Ecol & Green Infra | AT316: Med
C317: =C311 -> Services | D317: =$AF$332 -> High | H317: =$AF$333 -> High | L317: =$AF$334 -> Low | P317: =$AF$335 -> High | T317: =$AF$336 -> High | AO317: Energy | AP317: High | AS317: Energy | AT317: Low
C318: =C312 -> Water Supply | D318: =$AF$338 -> High | H318: =$AF$339 -> High | L318: =$AF$340 -> Low | P318: =$AF$341 -> Low | T318: =$AF$342 -> Low | AO318: Roads & Public Infra | AP318: High | AS318: Roads & Public Infra | AT318: Low
C319: =C313 -> Infrastructure | D319: =$AF$344 -> High | G319: =$AF$345 -> High | K319: =$AF$346 -> High | N319: =$AF$347 -> High | Q319: =$AF$348 -> Low | U319: =$AF$349 -> Low
B321: SENSITIVITY
C322: =AJ422 -> Human | D322: =AI279 -> Diverse Livelihoods | H322: =AI280 -> Climate Information | L322: =AI281 -> Agric Information | P322: =AI282 -> Women | T322: =AI283 -> Health
C323: =AJ428 -> Institutions | D323: =AI285 -> Water user forums | I323: =AI286 -> Farming forums | N323: =AI287 -> Weather data | S323: =AI288 -> Health | Y323: Future Hazard | AC323: =AC450 -> FUTURE EXPOSURE | AG323: =AI450 -> FUTURE SENSITIVITY | AK323: Adaptive Capacity | AN323: Future Vulnerability | AR323: Future Risk
C324: =AJ433 -> Infrastructure | D324: =AI290 -> Water Storage | H324: =AI291 -> Water Supply | L324: =AI292 -> Roads & Transport | P324: =AI293 -> Energy | T324: =AI294 -> Housing / Shelter | Y324: =W453 -> 1 | Z324: =X453 -> Temperature | AA324: =Y453 -> Seasons | AB324: =AB453 -> High | AC324: =AC279 -> 1 | AD324: =AD279 -> Livelihoods | AE324: =AE279 -> Food security | AF324: =AH453 -> Low | AG324: =AG279 -> 1 | AH324: =AH279 -> Human | AI324: =AI279 -> Diverse Livelihoods | AJ324: =AN453 -> High | AK324: =AK279 -> Climate Info | AL324: =AS453 -> Poor | AO324: =$AH$279 -> Human | AP324: =BI471 -> High | AS324: =AS279 -> Livelihoods | AT324: =BI478 -> Med
C325: =AJ439 -> Natural Resources | D325: =AI296 -> Land | I325: =AI297 -> Water Resources | N325: =AI298 -> Ecosystems | S325: =AI299 -> Soil | AA325: =Y454 -> Annual Trends | AB325: =AB454 -> High | AE325: =AE280 -> Crops | AF325: =AH454 -> Low | AI325: =AI280 -> Climate Information | AJ325: =AN454 -> High | AK325: =AK280 -> Climate Smart Agr | AL325: =AS454 -> Poor | AO325: =$AH$285 -> Institutions | AP325: High | AS325: =AS280 -> Health & Safety | AT325: Low
C326: =AJ444 -> Financial Resources | D326: =AI301 -> Sustainable Income | N326: =AI302 -> Diverse Income | AA326: =Y455 -> Changes | AB326: =AB455 -> Low | AE326: Livestock | AF326: =AH455 -> Low | AI326: Agric Information | AJ326: =AN455 -> High | AK326: =AK281 -> EWS Info | AL326: =AS455 -> Poor | AO326: =$AH$290 -> Infrastructure | AP326: High | AS326: =AS281 -> Services | AT326: Med
B327: CURRENT | AI327: Women | AJ327: =AN456 -> High | AK327: =AK282 -> Women | AL327: =AS456 -> Poor | AO327: =$AH$296 -> Natural Resources | AP327: High | AS327: =AS282 -> Water Supply | AT327: Med
C328: =C322 -> Human | D328: =$AJ$279 -> High | H328: =$AJ$280 -> High | L328: =$AJ$281 -> High | P328: =$AJ$282 -> High | T328: =$AJ$283 -> High | Y328: =W457 -> 2 | Z328: =X457 -> Rainfall | AA328: =Y457 -> Seasons | AB328: =AB457 -> High | AC328: =AC283 -> 2 | AD328: =AD283 -> Health & Safety | AE328: Water Borne Diseases | AF328: =AH457 -> Low | AI328: Health | AJ328: =AN457 -> High | AK328: =AK283 -> Health Awareness | AL328: =AS457 -> Poor | AO328: =$AH$301 -> Financial Resources | AP328: High | AS328: =AS283 -> Infrastructure | AT328: Med
C329: Institutions | D329: =$AJ$285 -> High | I329: =$AJ$286 -> High | N329: =$AJ$287 -> High | S329: =$AJ$288 -> High | AA329: =Y458 -> Annual Trends | AB329: =AB458 -> High | AE329: Vector Diseases | AF329: =AH458 -> Low
C330: Infrastructure | D330: =$AJ$290 -> High | H330: =$AJ$291 -> High | L330: =$AJ$292 -> High | P330: =$AJ$293 -> High | T330: =$AJ$294 -> High | AA330: =Y459 -> Changes | AB330: =AB459 -> Low | AE330: Safety | AF330: =AH459 -> Low | AG330: =AG285 -> 2 | AH330: =AH285 -> Institutions | AI330: Water user forums | AJ330: =AN459 -> High | AK330: =AK285 -> EWS | AL330: =AS459 -> Poor | AO330: =$AU$422 -> Livelihoods | AP330: =BI465 -> High
C331: Natural Resources | D331: =$AJ$296 -> High | I331: =$AJ$297 -> High | N331: =$AJ$298 -> High | S331: =$AJ$299 -> High | AI331: Farming forums | AJ331: =AN460 -> High | AK331: =AK286 -> Engagement | AL331: =AS460 -> Poor | AO331: =$AU$426 -> Health & Safety | AP331: High
C332: Financial Resources | D332: =$AJ$301 -> High | N332: =$AJ$302 -> High | Y332: =W461 -> 3 | Z332: =X461 -> Droughts | AA332: =Y461 -> Events | AB332: =AB461 -> Low | AC332: =AC287 -> 3 | AD332: =AD287 -> Services | AE332: Housing | AF332: =AH461 -> High | AI332: Weather data | AJ332: =AN461 -> High | AK332: =AK287 -> Resources | AL332: =AS461 -> Poor | AO332: =$AU$430 -> Services | AP332: High
B333: FUTURE | AA333: =Y462 -> Timing | AB333: =AB462 -> Low | AE333: Land | AF333: =AH462 -> High | AI333: Health | AJ333: =AN462 -> High | AK333: =AK288 -> Health | AL333: =AS462 -> Poor | AO333: =$AU$436 -> Water Supply | AP333: High
C334: Human | D334: =$AJ$324 -> High | H334: =$AJ$325 -> High | L334: =$AJ$326 -> High | P334: =$AJ$327 -> High | T334: =$AJ$328 -> High | AA334: =Y463 -> Extent | AB334: =AB463 -> Low | AE334: Community | AF334: =AH463 -> Low | AO334: =$AU$442 -> Infrastructure | AP334: High
C335: Institutions | D335: =$AJ$330 -> High | I335: =$AJ$331 -> High | N335: =$AJ$332 -> High | S335: =$AJ$333 -> High | AA335: =Y464 -> Effect | AB335: =AB464 -> Low | AE335: Sanitation | AF335: =AH464 -> High | AG335: =AG290 -> 3 | AH335: =AH290 -> Infrastructure | AI335: Water Storage | AJ335: =AN464 -> High | AK335: =AK290 -> Water Storage | AL335: =AS464 -> Poor
C336: Infrastructure | D336: =$AJ$335 -> High | H336: =$AJ$336 -> High | L336: =$AJ$337 -> High | P336: =$AJ$338 -> High | T336: =$AJ$339 -> High | AE336: Energy | AF336: =AH465 -> High | AI336: Water Supply | AJ336: =AN465 -> High | AK336: =AK291 -> Green Infra | AL336: =AS465 -> Poor
C337: Natural Resources | D337: =$AJ$341 -> High | I337: =$AJ$342 -> High | N337: =$AJ$343 -> High | S337: =$AJ$344 -> High | Y337: =W466 -> 4 | Z337: =X466 -> Floods | AA337: =Y466 -> Events | AB337: =AB466 -> Low | AI337: Roads & Transport | AJ337: =AN466 -> High | AK337: =AK292 -> Roads & Transport | AL337: =AS466 -> Poor | AN337: Future Vulnerability | AR337: Future Risk
C338: Financial Resources | D338: =$AJ$346 -> High | N338: =$AJ$347 -> High | AA338: =Y467 -> Timing | AB338: =AB467 -> Low | AC338: =AC293 -> 4 | AD338: =AD293 -> Water Supply | AE338: Access | AF338: =AH467 -> High | AI338: Energy | AJ338: =AN467 -> High | AK338: =AK293 -> Maintenance | AL338: =AS467 -> Poor | AN338: =AD324 -> Livelihoods | AO338: =AE324 -> Food security | AP338: =AY453 -> High | AR338: =AR293 -> Livelihoods | AS338: =AS293 -> Food security | AT338: =BE453 -> Med
AA339: =Y468 -> Extent | AB339: =AB468 -> Low | AE339: Quality | AF339: =AH468 -> High | AI339: Housing / Shelter | AJ339: =AN468 -> High | AK339: =AK294 -> Housing / Shelter | AL339: =AS468 -> Poor | AO339: =AE325 -> Crops | AP339: =AY454 -> High | AS339: =AS294 -> Crops | AT339: =BE454 -> Med
B340: ADAPT CAPACITY | AA340: =Y469 -> Effect | AB340: =AB469 -> Low | AE340: Droughts | AF340: =AH469 -> Low | AO340: Livestock | AP340: =AY455 -> High | AS340: Livestock | AT340: =BE455 -> Med
C341: =C322 -> Human | D341: =AK279 -> Climate Info | H341: =AK280 -> Climate Smart Agr | L341: =AK281 -> EWS Info | P341: =AK282 -> Women | T341: =AK283 -> Health Awareness | AE341: Floods | AF341: =AH470 -> Low | AG341: =AG296 -> 4 | AH341: =AH296 -> Natural Resources | AI341: Land | AJ341: =AN470 -> High | AK341: =AK296 -> Land | AL341: =AS470 -> Poor | AR341: =AR296 -> 
C342: =C323 -> Institutions | D342: =AK285 -> EWS | I342: =AK286 -> Engagement | N342: =AK287 -> Resources | S342: =AK288 -> Health | Y342: =W471 -> 5 | Z342: =X471 -> Other Factors | AA342: =Y471 -> Fire | AB342: =AB471 -> Low | AE342: Other Climate Hazards | AF342: =AH471 -> Low | AI342: Water Resources | AJ342: =AN471 -> High | AK342: =AK297 -> Water Resources | AL342: =AS471 -> Poor | AN342: =AD328 -> Health & Safety | AO342: Water Borne Diseases | AP342: =AY457 -> High | AR342: =AR297 -> Health & Safety | AS342: Water Borne Diseases | AT342: =BE457 -> Low
C343: =C324 -> Infrastructure | D343: =AK290 -> Water Storage | H343: =AK291 -> Green Infra | L343: =AK292 -> Roads & Transport | P343: =AK293 -> Maintenance | T343: =AK294 -> Housing / Shelter | AA343: =Y472 -> Snow | AB343: Low | AI343: Ecosystems | AJ343: =AN472 -> High | AK343: =AK298 -> Ecosystems | AL343: =AS472 -> Poor | AO343: Vector Diseases | AP343: =AY458 -> High | AS343: Vector Diseases | AT343: =BE458 -> Low
C344: =C325 -> Natural Resources | D344: =AK296 -> Land | H344: =AK297 -> Water Resources | I344: =$AK$297 -> Water Resources | N344: =AK298 -> Ecosystems | S344: =AK299 -> Soil | AA344: =Y473 -> Hail | AB344: Low | AC344: =AC299 -> 5 | AD344: =AD299 -> Infrastructure | AE344: Water Supply | AF344: =AH473 -> High | AI344: Soil | AJ344: =AN473 -> High | AK344: =AK299 -> Soil | AL344: =AS473 -> Poor | AO344: Safety | AP344: =AY459 -> High | AS344: Safety | AT344: =BE459 -> Low
C345: =C326 -> Financial Resources | D345: =AK301 -> Finance | N345: =AK302 -> Insurance | AA345: =Y474 -> Tornado | AB345: Low | AE345: Water Treatment | AF345: High | AR345: =AR300 -> 
B346: CURRENT | AA346: =Y475 -> Earthquake | AB346: Low | AE346: Water Storage | AF346: High | AG346: =AG301 -> 5 | AH346: =AH301 -> Financial Resources | AI346: Sustainable Income | AJ346: =AN475 -> High | AK346: =AK301 -> Finance | AL346: =AS475 -> Poor | AN346: =AD332 -> Services | AO346: Housing | AP346: =AY461 -> High | AR346: =AR301 -> Services | AS346: Housing | AT346: =BE461 -> Med
C347: =C341 -> Human | D347: =$AL$279 -> Poor | H347: =$AL$280 -> Poor | L347: =$AL$281 -> Poor | P347: =$AL$282 -> Poor | T347: =$AL$283 -> Poor | AA347: =Y476 -> Volcano | AB347: Low | AE347: Ecol & Green Infra | AF347: High | AI347: Diverse Income | AJ347: =AN476 -> High | AK347: =AK302 -> Insurance | AL347: =AS476 -> Poor | AO347: Land | AP347: =AY462 -> High | AS347: Land | AT347: =BE462 -> Med
C348: Institutions | D348: =$AL$285 -> Poor | I348: =$AL$286 -> Poor | N348: =$AL$287 -> Poor | S348: =$AL$288 -> Poor | AE348: Energy | AF348: Low | AO348: Community | AP348: =AY463 -> High | AS348: Community | AT348: =BE463 -> Low
A349: Good | C349: Infrastructure | D349: =$AL$290 -> Poor | H349: =$AL$291 -> Poor | L349: =$AL$292 -> Poor | P349: =$AL$293 -> Poor | T349: =$AL$294 -> Poor | AE349: Roads & Public Infra | AF349: Low | AO349: Sanitation | AP349: =AY464 -> High | AS349: Sanitation | AT349: =BE464 -> Med
A350: Ave | C350: Natural Resources | D350: =$AL$296 -> Poor | I350: =$AL$297 -> Poor | N350: =$AL$298 -> Poor | S350: =$AL$299 -> Poor | AO350: Energy | AP350: =AY465 -> High | AS350: Energy | AT350: =BE465 -> Med
A351: Poor | C351: Financial Resources | D351: =$AL$301 -> Poor | N351: =$AL$302 -> Poor | AR351: =AR306 -> 
B352: FUTURE | AN352: =AD338 -> Water Supply | AO352: Access | AP352: =AY467 -> High | AR352: =AR307 -> Water Supply | AS352: Access | AT352: =BE467 -> Med
C353: Human | D353: =$AL$324 -> Poor | H353: =$AL$325 -> Poor | L353: =$AL$326 -> Poor | P353: =$AL$327 -> Poor | T353: =$AL$328 -> Poor | AO353: Quality | AP353: =AY468 -> High | AS353: Quality | AT353: =BE468 -> High
C354: Institutions | D354: =$AL$330 -> Poor | I354: =$AL$331 -> Poor | N354: =$AL$332 -> Poor | S354: =$AL$333 -> Poor | AO354: Droughts | AP354: =AY469 -> High | AS354: Droughts | AT354: =BE469 -> Med
C355: Infrastructure | D355: =$AL$335 -> Poor | H355: =$AL$336 -> Poor | L355: =$AL$337 -> Poor | P355: =$AL$338 -> Poor | T355: =$AL$339 -> Poor | AO355: Floods | AP355: =AY470 -> High | AS355: Floods | AT355: =BE470 -> Low
... 121 more rows

Sheet Responses
C5: According to the vulnerability and risk assessment, the following areas can be rated as high:
D7: CURRENT VULNERABILITY | AA7: FUTURE VULNERABILITY
D9: =D19 -> Livelihoods | H9: =H19 -> Health & Safety | L9: =L19 -> Services | P9: =P19 -> Water Supply | T9: =T19 -> Infrastructure | AA9: =AA19 -> Livelihoods | AE9: =AE19 -> Health & Safety | AI9: =AI19 -> Services | AM9: =AM19 -> Water Supply | AQ9: =AQ19 -> Infrastructure
D10: In more detail: | AA10: In more detail:
C11: =C21 -> Livelihoods | D11: Food security | K11: =K21 -> Crops | Q11: =Q21 -> Livestock | Z11: =C11 -> Livelihoods | AA11: =AA21 -> Food security | AH11: =AH21 -> Crops | AN11: =AN21 -> Livestock
C12: Health & Safety | D12: Water Borne Diseases | K12: =K22 -> Vector Diseases | Q12: =Q22 -> Safety | Z12: Health & Safety | AA12: =AA22 -> Water Borne Diseases | AH12: =AH22 -> Vector Diseases | AN12: =AN22 -> Safety
C13: Services | D13: Housing | H13: =H23 -> Land | L13: =L23 -> Community | P13: =P23 -> Sanitation | T13: =T23 -> Energy | Z13: Services | AA13: =AA23 -> Housing | AE13: =AE23 -> Land | AI13: =AI23 -> Community | AM13: =AM23 -> Sanitation | AQ13: =AQ23 -> Energy
C14: Water Supply | D14: Access | H14: =H24 -> Quality | L14: =L24 -> Droughts | P14: =P24 -> Floods | T14: =T24 -> Other Climate Hazards | Z14: Water Supply | AA14: =AA24 -> Access | AE14: =AE24 -> Quality | AI14: =AI24 -> Droughts | AM14: =AM24 -> Floods | AQ14: =AQ24 -> Other Climate Hazards
C15: Infrastructure | D15: Water Supply | G15: =G25 -> Water Treatment | K15: =K25 -> Water Storage | N15: =N25 -> Ecol & Green Infra | Q15: =Q25 -> Energy | U15: =U25 -> Roads & Public Infra | Z15: Infrastructure | AA15: =AA25 -> Water Supply | AD15: =AD25 -> Water Treatment | AH15: =AH25 -> Water Storage | AK15: =AK25 -> Ecol & Green Infra | AN15: =AN25 -> Energy | AR15: =AR25 -> Roads & Public Infra
D17: CURRENT RISK | AA17: FUTURE RISK
D19: =C111 -> Livelihoods | H19: Health & Safety | L19: Services | P19: Water Supply | T19: Infrastructure | AA19: =C111 -> Livelihoods | AE19: =G111 -> Health & Safety | AI19: =K111 -> Services | AM19: =O111 -> Water Supply | AQ19: =S111 -> Infrastructure
D20: In more detail: | AA20: In more detail:
C21: =B118 -> Livelihoods | D21: =C118 -> Food security | K21: Crops | Q21: Livestock | Z21: =C21 -> Livelihoods | AA21: =C118 -> Food security | AH21: Crops | AN21: =P118 -> Livestock
C22: Health & Safety | D22: =C119 -> Water Borne Diseases | K22: Vector Diseases | Q22: Safety | Z22: Health & Safety | AA22: Water Borne Diseases | AH22: Vector Diseases | AN22: =P119 -> Safety
C23: Services | D23: =C120 -> Housing | H23: Land | L23: Community | P23: Sanitation | T23: Energy | Z23: Services | AA23: Housing | AE23: Land | AI23: Community | AM23: =O120 -> Sanitation | AQ23: =S120 -> Energy
C24: Water Supply | D24: =C121 -> Access | H24: Quality | L24: Droughts | P24: Floods | T24: Other Climate Hazards | Z24: Water Supply | AA24: Access | AE24: Quality | AI24: Droughts | AM24: =O121 -> Floods | AQ24: =S121 -> Other Climate Hazards
C25: Infrastructure | D25: =C122 -> Water Supply | G25: Water Treatment | K25: Water Storage | N25: Ecol & Green Infra | Q25: Energy | U25: Roads & Public Infra | Z25: Infrastructure | AA25: Water Supply | AD25: Water Treatment | AH25: Water Storage | AK25: =M122 -> Ecol & Green Infra | AN25: =P122 -> Energy | AR25: =T122 -> Roads & Public Infra
C28: To view the responses required for each of the current and future high risk and high vulnerability areas, please click on this tab. This tab should also be clicked after any changes are made to the questionnaire. Once the tab has been clicked, please scroll below.
B33: CATEGORIES | F33: VULNERABILITY | L33: RISK | R33: ="Not High" -> Not High | S33: IN ORDER TO REDUCE VULNERABILITY AND RISK, YOU WOULD NEED TO IMPLEMENT THE FOLLOWING RESPONSE ACTIONS:
F34: CURRENT | I34: FUTURE | L34: CURRENT | O34: FUTURE | R34: High
B35: =RVAT_Output!$AU422 -> Livelihoods | R35: =IF(OR(R36=$R$34,R37=$R$34,R38=$R$34),$R$34,$R$33) -> High | S35: .
C36: =RVAT_Output!AV422 -> Food security | F36: HIGH | I36: =RVAT_Output!AP338 -> High | L36: =RVAT_Output!BE422 -> Med | O36: =RVAT_Output!BE453 -> Med | R36: =IF(L36=$R$34,$R$34,IF(O36=$R$34,$R$34,IF(F36=$R$34,$R$34,IF(I36=$R$34,$R$34,$R$33)))) -> High | S36: Human: Create information centres in villages; Organize training sessions for villages to better understand climate information; Sharing of information on climate general info and climate-induced disasters through existing networks. Diversify your economic activities to diversify exposure to external shocks and stresses. Women: Organize training sessions to better understand climate smart agriculture; Organise other women empowerment sessions. Institutions: Organise meetups between villages from different villages in the region, where to discuss farming challenges in the area; As a group, prioritise the main farming challenges, and brainstorm on best practices. Organise meetups between villages from different villages in the region, where to discuss water challenges in the area; As a group, prioritise the main water challenges. Set up groups/organizations that disseminate climate and weather data; Expand current initiative to share climate information; Create a mechanism to communicate challenges with relevant governmental institutions. Infrastructure: Water storage: Install a rainwater harvesting system - deep pit (well, shaft, or borehole), reservoir with percolation, dew/fog with nets, or other tools); Put a proposal by the village development committee on water on possible options for water storage (show initiative). Natural Resources: Sustainable waste management, including training and capacity development; Adopt more sustainable livelihoods practices - Changes in cropping patterns, natural soil erosion control, creating local ecosystems through planting indigenous trees and diversifying vegetation; Planting of vegetation (e.g. broom grass) in degraded and erosion prone areas, and in river beds to limit flooding and damage to infrastructure; Employ soil improvement techniques, e.g. crop rotation and contour farming (to control erosion). Financial Resources: Sustainable Income: Training centres and microfinance to develop skills for off-farming season activities; Vocational training - especially for youth, in placed with high in-migration; and creation of markets and training in other sector skills including hairdressing, sewing, carpentry (Training to obtain skills for work in other sectors). Diverse Income: Supporting diversification of livelihoods, including non-agricultural livelihoods strategies; Improved post harvest technologies such as setting up small-scale agro processing industries to utilize farm product. Finance & Insurance; Encourage social support networks; Encourage rotational credits; Promoting savings and building capacity to plan for risk management; Government to strengthen social protection schemes.
C37: =RVAT_Output!AV423 -> Crops | F37: =RVAT_Output!AP294 -> High | I37: =RVAT_Output!AP339 -> High | L37: =RVAT_Output!BE423 -> Med | O37: =RVAT_Output!BE454 -> Med | R37: =IF(L37=$R$34,$R$34,IF(O37=$R$34,$R$34,IF(F37=$R$34,$R$34,IF(I37=$R$34,$R$34,$R$33)))) -> High | S37: Human: Diversify your economic activities to diversify exposure to external shocks and stresses. Organize training sessions for villages to better understand climate information and climate smart agriculture; Building knowledge and skills on adaptation strategies; Promoting climate resilient agricultural practices: (a) Promote inter-cropping, natural fertilizer/pesticides and avoid monocultures", (b) Promotion of drought resistant local crops and species through community based nursery, (c) Promotion of local seed exchange system to conserve the environmentally stressed varieties, and (d) Prompting sustainable agriculture, organic farming, and appropriate technology to reduce degradation. ; Promote awareness about health risks. Women: Organize training sessions to better understand climate smart agriculture; Organise other women empowerment sessions Institutions: Organise meetups between villages from different villages in the region, where to discuss farming challenges in the area; As a group, prioritise the main farming challenges, and brainstorm on best practices. Organise meetups between villages from different villages in the region, where to discuss water challenges in the area; As a group, prioritise the main water challenges. Set up groups/organizations that disseminate climate and weather data; Expand current initiative to share climate information; Create a mechanism to communicate challenges with relevant governmental institutions. Infrastructure: Introducing technologies to address water stresses for agriculture; Install a rainwater harvesting system - deep pit (well, shaft, or borehole), reservoir with percolation, dew/fog with nets, or other tools). Food reserves: Promote local and community food storage, grain/seed banks and silos - establishing food and seed banks in places sage from hazards. Natural Resources: Sustainable waste management, including training and capacity development; Adopt more sustainable livelihoods practices - Changes in cropping patterns, natural soil erosion control, creating local ecosystems through planting indigenous trees and diversifying vegetation; Planting of vegetation (e.g. broom grass) in degraded and erosion prone areas, and in river beds; Employ soil improvement techniques, e.g. crop rotation and contour farming (to control erosion). Financial Resources: Sustainable Income: Training centres and microfinance to develop skills for off-farming season activities; Vocational training - especially for youth, in placed with high in-migration; and creation of markets and training in other sector skills including hairdressing, sewing, carpentry (Training to obtain skills for work in other sectors). Diverse Income: Supporting diversification of livelihoods, including non-agricultural livelihoods strategies; Improved post harvest technologies such as setting up small-scale agro processing industries to utilize farm product. Finance & Insurance; Encourage social support networks; Encourage rotational credits; Promoting savings and building capacity to plan for risk management; Government to strengthen social protection schemes.
B38: =RVAT_Output!$AU425 ->  | C38: =RVAT_Output!AV424 -> Livestock | F38: =RVAT_Output!AP295 -> High | I38: =RVAT_Output!AP340 -> High | L38: =RVAT_Output!BE424 -> Med | O38: =RVAT_Output!BE455 -> Med | R38: =IF(L38=$R$34,$R$34,IF(O38=$R$34,$R$34,IF(F38=$R$34,$R$34,IF(I38=$R$34,$R$34,$R$33)))) -> High | S38: Human: Organize training sessions for villages to better understand climate information and climate smart agriculture; Building knowledge and skills on adaptation strategies; Promoting climate resilient livestock practices; Promote awareness about health risks. Diversify your economic activities to diversify exposure to external shocks and stresses. Women: Organize training sessions to better understand climate smart agriculture; Organise other women empowerment sessions. Institutions: Organise meetups between villages from different villages in the region, where to discuss farming challenges in the area; As a group, prioritise the main farming challenges, and brainstorm on best practices. Organise meetups between villages from different villages in the region, where to discuss water challenges in the area; As a group, prioritise the main water challenges. Set up groups/organizations that disseminate climate and weather data; Expand current initiative to share climate information; Create a mechanism to communicate challenges with relevant governmental institutions. Infrastructure: Introducing technologies to address water stresses for agriculture; Install a rainwater harvesting system - deep pit (well, shaft, or borehole), reservoir with percolation, dew/fog with nets, or other tools). Natural Resources: Sustainable waste management, including training and capacity development; Adopt more sustainable livelihoods practices; Planting of vegetation in degraded and erosion prone areas, and in river beds; Employ livestock rotation techniques (to control erosion). Financial Resources: Sustainable Income: Training centres and microfinance to develop skills for off-farming season activities; Vocational training - especially for youth, in placed with high in-migration; and creation of markets and training in other sector skills including hairdressing, sewing, carpentry (Training to obtain skills for work in other sectors). Diverse Income: Supporting diversification of livelihoods, including non-agricultural livelihoods strategies; Improved post harvest technologies such as setting up small-scale agro processing industries to utilize farm product. Finance & Insurance; Encourage social support networks; Encourage rotational credits; Promoting savings and building capacity to plan for risk management; Government to strengthen social protection schemes.
B39: =RVAT_Output!$AU426 -> Health & Safety | R39: =IF(OR(R40=$R$34,R41=$R$34,R42=$R$34),$R$34,$R$33) -> High | S39: .
C40: =RVAT_Output!AV426 -> Water Borne Diseases | F40: =RVAT_Output!AP297 -> High | I40: =RVAT_Output!AP342 -> High | L40: =RVAT_Output!BE426 -> Low | O40: =RVAT_Output!BE457 -> Low | R40: =IF(L40=$R$34,$R$34,IF(O40=$R$34,$R$34,IF(F40=$R$34,$R$34,IF(I40=$R$34,$R$34,$R$33)))) -> High | S40: Human: Sharing of information on climate general info and climate-induced disasters through existing networks. EWS, such as organise training sessions for villager on responses to climate risk information; strengthening access to EWS / building capacity to analyse risks; Implement/Expand SMS system to send villagers relevant information; Consider a "village committee" to promote sharing of EWS information. Women: Organize training sessions to better understand climate smart agriculture; Organise other women empowerment sessions. Health: Expand the number of health surveillance assistants; Promote awareness about health risks.. Institutions: Expand proximity health services; Facilitate transport to health facilities. Organise meetups between villages from different villages in the region, where to discuss water challenges in the area; As a group, prioritise the main water challenges. Set up groups/organizations that disseminate climate and weather data; Expand current initiative to share climate information; Create a mechanism to communicate challenges with relevant governmental institutions. Infrastructure: Improving health services to withstand hazards, including road and transportation network to promote access. Natural Resources: Implement ecological infrastructure (e.g. wetlands) to promote healthy ecosystems. Financial Resources: Encourage social support networks; Encourage rotational credits; Promoting savings and building capacity to plan for risk management; Government to strengthen social protection schemes.
C41: =RVAT_Output!AV427 -> Vector Diseases | F41: =RVAT_Output!AP298 -> High | I41: =RVAT_Output!AP343 -> High | L41: =RVAT_Output!BE427 -> Low | O41: =RVAT_Output!BE458 -> Low | R41: =IF(L41=$R$34,$R$34,IF(O41=$R$34,$R$34,IF(F41=$R$34,$R$34,IF(I41=$R$34,$R$34,$R$33)))) -> High | S41: Human: Sharing of information on climate general info and climate-induced disasters through existing networks. EWS, such as organise training sessions for villager on responses to climate risk information; strengthening access to EWS / building capacity to analyse risks; Implement/Expand SMS system to send villagers relevant information; Consider a "village committee" to promote sharing of EWS information. Women: Organize training sessions to better understand climate smart agriculture; Organise other women empowerment sessions. Health: Expand the number of health surveillance assistants; Promote awareness about health risks Institutions: Expand proximity health services; Facilitate transport to health facilities. Organise meetups between villages from different villages in the region, where to discuss water challenges in the area; As a group, prioritise the main water challenges. Set up groups/organizations that disseminate climate and weather data; Expand current initiative to share climate information; Create a mechanism to communicate challenges with relevant governmental institutions. Infrastructure: Improving health services to withstand hazards, including transportation network to promote access. Natural Resources: Implement ecological infrastructure (e.g. wetlands) to promote healthy ecosystems Financial Resources: Encourage social support networks; Encourage rotational credits; Promoting savings and building capacity to plan for risk management; Government to strengthen social protection schemes.
B42: =RVAT_Output!$AU429 ->  | C42: =RVAT_Output!AV428 -> Safety | F42: =RVAT_Output!AP299 -> High | I42: =RVAT_Output!AP344 -> High | L42: =RVAT_Output!BE428 -> Low | O42: =RVAT_Output!BE459 -> Low | R42: =IF(L42=$R$34,$R$34,IF(O42=$R$34,$R$34,IF(F42=$R$34,$R$34,IF(I42=$R$34,$R$34,$R$33)))) -> High | S42: Human: Create information centres in villages; Organize training sessions for villages to better understand climate information; Sharing of information on climate general info and climate-induced disasters through existing networks. EWS, such as organise training sessions for villager on responses to climate risk information; strengthening access to EWS / building capacity to analyse risks; Implement/Expand SMS system to send villagers relevant information; Consider a "village committee" to promote sharing of EWS information. Women: Organize training sessions to better understand climate smart agriculture; Organise other women empowerment sessions. Institutions: Organise meetups between villages from different villages in the region, where to discuss water challenges in the area; As a group, prioritise the main water challenges. Set up groups/organizations that disseminate climate and weather data; Expand current initiative to share climate information; Create a mechanism to communicate challenges with relevant governmental institutions. Infrastructure: Improving shelters and communities to withstand hazards, including road and transportation network to promote access. Natural Resources: Hill stabilisation and catchment restoration (by planting trees) to prevent erosion and promote stability (to minimise land slides / other impacts). Financial Resources: Encourage social support networks; Encourage rotational credits; Promoting savings and building capacity to plan for risk management; Government to strengthen social protection schemes.
B43: =RVAT_Output!$AU430 -> Services | R43: =IF(OR(R44=$R$34,R45=$R$34,R46=$R$34,R47=$R$34,R48=$R$34),$R$34,$R$33) -> High | S43: .
C44: =RVAT_Output!AV430 -> Housing | F44: =RVAT_Output!AP301 -> High | I44: =RVAT_Output!AP346 -> High | L44: =RVAT_Output!BE430 -> Med | O44: =RVAT_Output!BE461 -> Med | R44: =IF(L44=$R$34,$R$34,IF(O44=$R$34,$R$34,IF(F44=$R$34,$R$34,IF(I44=$R$34,$R$34,$R$33)))) -> High | S44: Human: Create information centres in villages; Organize training sessions for villages to better understand climate information; Sharing of information on climate general info and climate-induced disasters through existing networks. EWS, such as organise training sessions for villager on responses to climate risk information; strengthening access to EWS / building capacity to analyse risks; Implement/Expand SMS system to send villagers relevant information; Consider a "village committee" to promote sharing of EWS information Institutions: Set up groups/organizations that disseminate climate and weather data; Expand current initiative to share climate information; Create a mechanism to communicate challenges with relevant governmental institutions. Set up groups/organizations that disseminate climate and weather data; Expand current initiative to share climate information; Create a mechanism to communicate challenges with relevant governmental institutions. Infrastructure: Improving shelters to withstand hazards Natural Resources: Do land zonation and rehabilitation; Hill stabilisation and catchment restoration (by planting trees) to prevent erosion and promote stability (to minimise land slides / other impacts). Financial Resources: Encourage social support networks; Encourage rotational credits; Promoting savings and building capacity to plan for risk management; Government to strengthen social protection schemes.
C45: =RVAT_Output!AV431 -> Land | F45: =RVAT_Output!AP302 -> High | I45: =RVAT_Output!AP347 -> High | L45: =RVAT_Output!BE431 -> Med | O45: =RVAT_Output!BE462 -> Med | R45: =IF(L45=$R$34,$R$34,IF(O45=$R$34,$R$34,IF(F45=$R$34,$R$34,IF(I45=$R$34,$R$34,$R$33)))) -> High | S45: Human: Create information centres in villages; Organize training sessions for villages to better understand climate information; Sharing of information on climate general info and climate-induced disasters through existing networks. EWS, such as organise training sessions for villager on responses to climate risk information; strengthening access to EWS / building capacity to analyse risks; Implement/Expand SMS system to send villagers relevant information; Consider a "village committee" to promote sharing of EWS information Institutions: Expand proximity health services; Facilitate transport to health facilities. Set up groups/organizations that disseminate climate and weather data; Expand current initiative to share climate information; Create a mechanism to communicate challenges with relevant governmental institutions; Increase institutional finance and human resource capacity. Infrastructure: Improving access in the face of hazards, including road network to promote access. Natural Resources: Adopt legislation protecting land rights; Do land zonation and rehabilitation. Financial Resources: Encourage social support networks; Encourage rotational credits; Promoting savings and building capacity to plan for risk management; Government to strengthen social protection schemes.
C46: =RVAT_Output!AV432 -> Community | F46: =RVAT_Output!AP303 -> High | I46: =RVAT_Output!AP348 -> High | L46: =RVAT_Output!BE432 -> Low | O46: =RVAT_Output!BE463 -> Low | R46: =IF(L46=$R$34,$R$34,IF(O46=$R$34,$R$34,IF(F46=$R$34,$R$34,IF(I46=$R$34,$R$34,$R$33)))) -> High | S46: Human: Sharing of information on climate general info and climate-induced disasters through existing networks. EWS, such as or strengthening access to EWS / building capacity to analyse risks; Implement/Expand SMS system to send relevant information. Institutions: Expand proximity and/or facilitate transport to health services and other facilities (e.g. school, church). Set up groups/organizations that disseminate climate and weather data; Expand current initiative to share climate information; Create a mechanism to communicate challenges with relevant governmental institutions. Infrastructure: Improving community services to withstand hazards, including road and transportation network to promote access. Natural Resources: Sustainable water and waste management, including trainings and capacity development; Hill stabilisation and catchment restoration (by planting trees) to prevent erosion and promote stability (to minimise land slides / other impacts). Financial Resources: Encourage social support networks; Encourage rotational credits; Promoting savings and building capacity to plan for risk management; Government to strengthen social protection schemes.
C47: =RVAT_Output!AV433 -> Sanitation | F47: =RVAT_Output!AP304 -> High | I47: =RVAT_Output!AP349 -> High | L47: =RVAT_Output!BE433 -> Med | O47: =RVAT_Output!BE464 -> Med | R47: =IF(L47=$R$34,$R$34,IF(O47=$R$34,$R$34,IF(F47=$R$34,$R$34,IF(I47=$R$34,$R$34,$R$33)))) -> High | S47: Human: Organize training sessions for villages to better understand climate information; Sharing of information on climate general info and climate-induced disasters through existing networks. EWS, such as or strengthening access to EWS / building capacity to analyse risks; Implement/Expand SMS system to send relevant information. Institutions: Set up groups/organizations that disseminate climate and weather data; Expand current initiative to share climate information; Create a mechanism to communicate challenges with relevant governmental institutions; Increase institutional finance and human resource capacity. Infrastructure: Promoting access to good quality sanitation that can withstand climate hazards; Promote access to a centralised sanitation system. Natural Resources: Sustainable waste management, including trainings and capacity development; Catchment restoration and implementing green infrastructure such as wetlands to improve water quality (due to poor sanitation). Financial Resources: Encourage social support networks; Encourage rotational credits; Promoting savings and building capacity to plan for risk management; Government to strengthen social protection schemes.
B48: =RVAT_Output!$AU435 ->  | C48: =RVAT_Output!AV434 -> Energy | F48: =RVAT_Output!AP305 -> High | I48: =RVAT_Output!AP350 -> High | L48: =RVAT_Output!BE434 -> Med | O48: =RVAT_Output!BE465 -> Med | R48: =IF(L48=$R$34,$R$34,IF(O48=$R$34,$R$34,IF(F48=$R$34,$R$34,IF(I48=$R$34,$R$34,$R$33)))) -> High | S48: Human: Sharing of information on climate general info and climate-induced disasters through existing networks. EWS, such as or strengthening access to EWS / building capacity to analyse risks; Implement/Expand SMS system to send relevant information. Institutions: Set up groups/organizations that disseminate climate and weather data; Expand current initiative to share climate information; Create a mechanism to communicate challenges with relevant governmental institutions; Increase institutional finance and human resource capacity. Infrastructure: Promote a diversified energy supply sources; Promote access to national grid Natural Resources: Sustainable waste management, including trainings and capacity development - such as promoting the implementation of the water-energy-food nexus. Catchment restoration - for deforestation. Financial Resources: Encourage social support networks; Encourage rotational credits; Promoting savings and building capacity to plan for risk management; Government to strengthen social protection schemes.
B49: =RVAT_Output!$AU436 -> Water Supply | R49: =IF(OR(R50=$R$34,R51=$R$34,R52=$R$34,R53=$R$34,R54=$R$34),$R$34,$R$33) -> High | S49: .
C50: =RVAT_Output!AV436 -> Access | F50: =RVAT_Output!AP307 -> High | I50: =RVAT_Output!AP352 -> High | L50: =RVAT_Output!BE436 -> Med | O50: =RVAT_Output!BE467 -> Med | R50: =IF(L50=$R$34,$R$34,IF(O50=$R$34,$R$34,IF(F50=$R$34,$R$34,IF(I50=$R$34,$R$34,$R$33)))) -> High | S50: Human: Create information centres in villages; Organize training sessions for villages to better understand climate information; Sharing of information on climate general info and climate-induced disasters through existing networks. EWS, such as organise training sessions for villager on responses to climate risk information; strengthening access to EWS / building capacity to analyse risks; Implement/Expand SMS system to send villagers relevant information; Consider a "village committee" to promote sharing of EWS information. Women: Organize training sessions to better understand climate smart agriculture; Organise other women empowerment sessions. Institutions: Organise meetups between villages from different villages in the region, where to discuss water challenges in the area; As a group, prioritise the main water challenges. Set up groups/organizations that disseminate climate and weather data; Expand current initiative to share climate information; Create a mechanism to communicate challenges with relevant governmental institutions. Infrastructure: Install/update a rainwater harvesting system - tank, deep pit (well, shaft, or borehole), reservoir with percolation, dew/fog with nets, or other tools) Natural Resources: Sustainable waste management, including training and capacity development; Adopt more sustainable livelihoods practices; Planting of vegetation in degraded and erosion prone areas, and in river beds. Financial Resources: Encourage social support networks; Encourage rotational credits; Promoting savings and building capacity to plan for risk management; Government to strengthen social protection schemes.
C51: =RVAT_Output!AV437 -> Quality | F51: =RVAT_Output!AP308 -> High | I51: =RVAT_Output!AP353 -> High | L51: =RVAT_Output!BE437 -> High | O51: =RVAT_Output!BE468 -> High | R51: =IF(L51=$R$34,$R$34,IF(O51=$R$34,$R$34,IF(F51=$R$34,$R$34,IF(I51=$R$34,$R$34,$R$33)))) -> High | S51: Human: Create information centres in villages; Organize training sessions for villages to better understand climate information; Sharing of information on climate general info and climate-induced disasters through existing networks. EWS, such as organise training sessions for villager on responses to climate risk information; strengthening access to EWS / building capacity to analyse risks; Implement/Expand SMS system to send villagers relevant information; Consider a "village committee" to promote sharing of EWS information. Women: Organize training sessions, specifically for women, to better understand climate smart agriculture; Organise other women empowerment sessions. Institutions: Organise meetups between villages from different villages in the region, where to discuss water challenges in the area; As a group, prioritise the main water challenges. Set up groups/organizations that disseminate climate and weather data; Expand current initiative to share climate information; Create a mechanism to communicate challenges with relevant governmental institutions. Infrastructure: Install/update a rainwater harvesting system - tank, deep pit (well, shaft, or borehole), reservoir with percolation, dew/fog with nets, or other tools) Natural Resources: Sustainable waste management, including training and capacity development; Catchment restoration and implementing green infrastructure such as wetlands to improve water quality (due to poor water quality). Financial Resources: Encourage social support networks; Encourage rotational credits; Promoting savings and building capacity to plan for risk management; Government to strengthen social protection schemes.
C52: =RVAT_Output!AV438 -> Droughts | F52: =RVAT_Output!AP309 -> High | I52: =RVAT_Output!AP354 -> High | L52: =RVAT_Output!BE438 -> Med | O52: =RVAT_Output!BE469 -> Med | R52: =IF(L52=$R$34,$R$34,IF(O52=$R$34,$R$34,IF(F52=$R$34,$R$34,IF(I52=$R$34,$R$34,$R$33)))) -> High | S52: Human: Create information centres in villages; Organize training sessions for villages to better understand climate information; Sharing of information on climate general info and climate-induced disasters through existing networks. EWS, such as organise training sessions for villager on responses to climate risk information; strengthening access to EWS / building capacity to analyse risks; Implement/Expand SMS system to send villagers relevant information; Consider a "village committee" to promote sharing of EWS information. Institutions: Organise meetups between villages from different villages in the region, where to discuss water challenges in the area; As a group, prioritise the main water challenges. Infrastructure: Install/update a rainwater harvesting system - tank, deep pit (well, shaft, or borehole), reservoir with percolation, dew/fog with nets, or other tools) Natural Resources: Sustainable waste management, including training and capacity development; Catchment restoration and implementing green infrastructure such as wetlands to minimise drought impacts. Financial Resources: Encourage social support networks; Encourage rotational credits; Promoting savings and building capacity to plan for risk management; Government to strengthen social protection schemes.
C53: =RVAT_Output!AV439 -> Floods | F53: =RVAT_Output!AP310 -> High | I53: =RVAT_Output!AP355 -> High | L53: =RVAT_Output!BE439 -> Low | O53: =RVAT_Output!BE470 -> Low | R53: =IF(L53=$R$34,$R$34,IF(O53=$R$34,$R$34,IF(F53=$R$34,$R$34,IF(I53=$R$34,$R$34,$R$33)))) -> High | S53: Human: Create information centres in villages; Organize training sessions for villages to better understand climate information; Sharing of information on climate general info and climate-induced disasters through existing networks. EWS, such as organise training sessions for villager on responses to climate risk information; strengthening access to EWS / building capacity to analyse risks; Implement/Expand SMS system to send villagers relevant information; Consider a "village committee" to promote sharing of EWS information. Institutions: Organise meetups between villages from different villages in the region, where to discuss water challenges in the area; As a group, prioritise the main water challenges. Set up groups/organizations that disseminate climate and weather data; Expand current initiative to share climate information; Create a mechanism to communicate challenges with relevant governmental institutions. Infrastructure: Improving households to withstand hazards Natural Resources: Hill stabilisation and catchment restoration (by planting trees) to prevent erosion and promote stability (to minimise land slides / other impacts); Implementing green infrastructure such as wetlands to minimise flood impacts. Financial Resources: Encourage social support networks; Encourage rotational credits; Promoting savings and building capacity to plan for risk management; Government to strengthen social protection schemes.
B54: =RVAT_Output!$AU441 ->  | C54: =RVAT_Output!AV440 -> Other Climate Hazards | F54: =RVAT_Output!AP311 -> High | I54: =RVAT_Output!AP356 -> High | L54: =RVAT_Output!BE440 -> Low | O54: =RVAT_Output!BE471 -> Low | R54: =IF(L54=$R$34,$R$34,IF(O54=$R$34,$R$34,IF(F54=$R$34,$R$34,IF(I54=$R$34,$R$34,$R$33)))) -> High | S54: Human: Create information centres in villages; Organize training sessions for villages to better understand climate information; Sharing of information on climate general info and climate-induced disasters through existing networks. EWS, such as organise training sessions for villager on responses to climate risk information; strengthening access to EWS / building capacity to analyse risks; Implement/Expand SMS system to send villagers relevant information; Consider a "village committee" to promote sharing of EWS information. Institutions: Set up groups/organizations that disseminate climate and weather data; Expand current initiative to share climate information; Create a mechanism to communicate challenges with relevant governmental institutions. Infrastructure: Improving shelters to withstand hazards Natural Resources: Hill stabilisation and catchment restoration (by planting trees) to prevent erosion and promote stability; Implementing green infrastructure such as wetlands to minimise impacts. Financial Resources: Encourage social support networks; Encourage rotational credits; Promoting savings and building capacity to plan for risk management; Government to strengthen social protection schemes.
B55: =RVAT_Output!$AU442 -> Infrastructure | R55: =IF(OR(R56=$R$34,R57=$R$34,R58=$R$34,R59=$R$34,R60=$R$34),$R$34,$R$33) -> High | S55: .
C56: =RVAT_Output!AV442 -> Water Supply | F56: =RVAT_Output!AP313 -> High | I56: =RVAT_Output!AP358 -> High | L56: =RVAT_Output!BE442 -> Med | O56: =RVAT_Output!BE473 -> Med | R56: =IF(L56=$R$34,$R$34,IF(O56=$R$34,$R$34,IF(F56=$R$34,$R$34,IF(I56=$R$34,$R$34,$R$33)))) -> High | S56: Human: Sharing of information on climate general info and climate-induced disasters through existing networks. EWS, such as or strengthening access to EWS / building capacity to analyse risks; Implement/Expand SMS system to send relevant information. Institutions: Organise meetups between villages from different villages in the region, where to discuss water challenges in the area; As a group, prioritise the main water challenges. Expand current initiative to share climate information; Create a mechanism to communicate challenges with relevant governmental institutions; Increase institutional finance and human resource capacity. Infrastructure: Building small and medium dams; Expand supply networks; Put together a plan for future developments in water infrastructure; Install a rainwater harvesting system - deep pit (well, shaft, or borehole), reservoir with percolation, dew/fog with nets, or other tools); Promote operational maintenance. Natural Resources: Sustainable waste management, including training and capacity development; Planting of vegetation (e.g. broom grass) in degraded and erosion prone areas, and in river beds to limit flooding and damage to infrastructure. Financial Resources: Government should explore innovative funding/financial arrangements (GCF, PPPs); Promoting gov-led savings and building capacity to plan for risk management; Government to strengthen social protection schemes.
C57: =RVAT_Output!AV443 -> Water Treatment | F57: =RVAT_Output!AP314 -> High | I57: =RVAT_Output!AP359 -> High | L57: =RVAT_Output!BE443 -> Med | O57: =RVAT_Output!BE474 -> Med | R57: High | S57: Human: Sharing of information on climate general info and climate-induced disasters through existing networks. EWS, such as or strengthening access to EWS / building capacity to analyse risks; Implement/Expand SMS system to send relevant information. Institutions: Organise meetups between villages from different villages in the region, where to discuss water challenges in the area; As a group, prioritise the main water challenges. Expand current initiative to share climate information; Create a mechanism to communicate challenges with relevant governmental institutions; Increase institutional finance and human resource capacity. Infrastructure: Building/upgrade water treatment systems; Use small scale/on-site low-cost water treatment; Promote operational maintenance. Natural Resources: Implementing green infrastructure such as wetlands to minimise water quality impacts. Sustainable waste management, including training and capacity development; Planting of vegetation in degraded and erosion prone areas, and in river beds to limit flooding and damage to infrastructure. Financial Resources: Government should explore innovative funding/financial arrangements (GCF, PPPs); Promoting gov-led savings and building capacity to plan for risk management; Government to strengthen social protection schemes.
C58: =RVAT_Output!AV444 -> Water Storage | F58: =RVAT_Output!AP315 -> High | I58: =RVAT_Output!AP360 -> High | L58: =RVAT_Output!BE444 -> Med | O58: =RVAT_Output!BE475 -> Med | R58: High | S58: Human: Sharing of information on climate general info and climate-induced disasters through existing networks. EWS, such as or strengthening access to EWS / building capacity to analyse risks; Implement/Expand SMS system to send relevant information. Institutions: Organise meetups between villages from different villages in the region, where to discuss water challenges in the area; As a group, prioritise the main water challenges. Expand current initiative to share climate information; Create a mechanism to communicate challenges with relevant governmental institutions; Increase institutional finance and human resource capacity. Infrastructure: Put together a plan for future developments in water infrastructure; Building small and medium projects Natural Resources: Sustainable waste management, including training and capacity development; Promoting blue-green infrastructure balance - creating local ecosystems through planting indigenous trees and diversifying vegetation; Planting of vegetation in degraded and erosion prone areas, and in river beds to limit flooding and damage to infrastructure. Financial Resources: Government should explore innovative funding/financial arrangements (GCF, PPPs); Promoting gov-led savings and building capacity to plan for risk management; Government to strengthen social protection schemes.
C59: =RVAT_Output!AV445 -> Ecol & Green Infra | F59: =RVAT_Output!AP316 -> High | I59: =RVAT_Output!AP361 -> High | L59: =RVAT_Output!BE445 -> Med | O59: =RVAT_Output!BE476 -> Med | R59: High | S59: Human: Sharing of information on climate general info and climate-induced disasters through existing networks. EWS, such as or strengthening access to EWS / building capacity to analyse risks; Implement/Expand SMS system to send relevant information. Institutions: Organise meetups between villages from different villages in the region, where to discuss water challenges in the area; As a group, prioritise the main water challenges. Infrastructure: Supplement blue and green infrastructure - promote payment for ecosystem services (PES) or water-energy-food (WEF) Nexus Natural Resources: Sustainable waste management, including training and capacity development; Creating local ecosystems through planting indigenous trees and diversifying vegetation; Planting of vegetation in degraded and erosion prone areas, and in river beds. Financial Resources: Government should explore innovative funding/financial arrangements (GCF, PPPs); Promoting gov-led savings and building capacity to plan for risk management; Government to strengthen social protection schemes.
C60: =RVAT_Output!AV446 -> Energy | F60: =RVAT_Output!AP317 -> High | I60: =RVAT_Output!AP362 -> High | L60: =RVAT_Output!BE446 -> Low | O60: =RVAT_Output!BE477 -> Low | R60: High | S60: Human: Sharing of information on climate general info and climate-induced disasters through existing networks. EWS, such as or strengthening access to EWS / building capacity to analyse risks; Implement/Expand SMS system to send relevant information. Institutions: Expand current initiative to share climate information; Create a mechanism to communicate challenges with relevant governmental institutions; Increase institutional finance and human resource capacity. Infrastructure: Promote a diversified energy network - explore alternative and decentralised energy, e.g. solar, wind; Develop an energy infrastructure resilience strategy; Promote operational maintenance Natural Resources: Sustainable waste management, including trainings and capacity development - such as promoting the implementation of the water-energy-food nexus. Financial Resources: Government should explore innovative funding/financial arrangements (GCF, PPPs); Promoting gov-led savings and building capacity to plan for risk management; Government to strengthen social protection schemes.
C61: =RVAT_Output!AV447 -> Roads & Public Infra | F61: =RVAT_Output!AP318 -> High | I61: =RVAT_Output!AP363 -> High | L61: =RVAT_Output!BE447 -> Low | O61: =RVAT_Output!BE478 -> Low | R61: High | S61: Human: Sharing of information on climate general info and climate-induced disasters through existing networks. EWS, such as or strengthening access to EWS / building capacity to analyse risks; Implement/Expand SMS system to send relevant information. Institutions: Expand current initiative to share climate information; Create a mechanism to communicate challenges with relevant governmental institutions; Increase institutional finance and human resource capacity. Infrastructure: Develop a road and infrastructure resilience strategy for roads and infrastructure in the community; Build and/or improve the road network and existing infrastructure to make it resilient to climate events (incl. disasters-resistant) - to ensure market access. For example, villages can dig their own small scale road drainage; Promote operational maintenance. Natural Resources: Planting of vegetation (e.g. broom grass) in degraded and erosion prone areas, and in river beds to limit flooding and damage to infrastructure. Financial Resources: Government should explore innovative funding/financial arrangements (GCF, PPPs); Promoting gov-led savings and building capacity to plan for risk management; Government to strengthen social protection schemes.
A110: =RVAT_Output!B391 -> RISK
C111: =RVAT_Output!D392 -> Livelihoods | G111: =RVAT_Output!H392 -> Health & Safety | K111: =RVAT_Output!L392 -> Services | O111: =RVAT_Output!P392 -> Water Supply | S111: =RVAT_Output!T392 -> Infrastructure
A112: =RVAT_Output!B393 -> CURRENT
C113: =RVAT_Output!D394 -> Med | G113: =RVAT_Output!H394 -> Low | K113: =RVAT_Output!L394 -> Med | O113: =RVAT_Output!P394 -> Med | S113: =RVAT_Output!T394 -> Med
A114: =RVAT_Output!B395 -> FUTURE
C115: =RVAT_Output!D396 -> Med | G115: =RVAT_Output!H396 -> Low | K115: =RVAT_Output!L396 -> Med | O115: =RVAT_Output!P396 -> Med | S115: =RVAT_Output!T396 -> Med
A117: =RVAT_Output!B398 -> RISK - Part 2
B118: =RVAT_Output!C399 -> Livelihoods | C118: =RVAT_Output!D399 -> Food security | J118: =RVAT_Output!K399 -> Crops | P118: =RVAT_Output!Q399 -> Livestock
B119: =RVAT_Output!C400 -> Health & Safety | C119: =RVAT_Output!D400 -> Water Borne Diseases | J119: =RVAT_Output!K400 -> Vector Diseases | P119: =RVAT_Output!Q400 -> Safety
B120: =RVAT_Output!C401 -> Services | C120: =RVAT_Output!D401 -> Housing | G120: =RVAT_Output!H401 -> Land | K120: =RVAT_Output!L401 -> Community | O120: =RVAT_Output!P401 -> Sanitation | S120: =RVAT_Output!T401 -> Energy
B121: =RVAT_Output!C402 -> Water Supply | C121: =RVAT_Output!D402 -> Access | G121: =RVAT_Output!H402 -> Quality | K121: =RVAT_Output!L402 -> Droughts | O121: =RVAT_Output!P402 -> Floods | S121: =RVAT_Output!T402 -> Other Climate Hazards
B122: =RVAT_Output!C403 -> Infrastructure | C122: =RVAT_Output!D403 -> Water Supply | F122: =RVAT_Output!G403 -> Water Treatment | J122: =RVAT_Output!K403 -> Water Storage | M122: =RVAT_Output!N403 -> Ecol & Green Infra | P122: =RVAT_Output!Q403 -> Energy | T122: =RVAT_Output!U403 -> Roads & Public Infra
A123: =RVAT_Output!B404 -> CURRENT
B124: =RVAT_Output!C405 -> Livelihoods | C124: =RVAT_Output!D405 -> Med | J124: =RVAT_Output!K405 -> Med | P124: =RVAT_Output!Q405 -> Med
B125: =RVAT_Output!C406 -> Health & Safety | C125: =RVAT_Output!D406 -> Low | J125: =RVAT_Output!K406 -> Low | P125: =RVAT_Output!Q406 -> Low
B126: =RVAT_Output!C407 -> Services | C126: =RVAT_Output!D407 -> Med | G126: =RVAT_Output!H407 -> Med | K126: =RVAT_Output!L407 -> Low | O126: =RVAT_Output!P407 -> Med | S126: =RVAT_Output!T407 -> Med
B127: =RVAT_Output!C408 -> Water Supply | C127: =RVAT_Output!D408 -> Med | G127: =RVAT_Output!H408 -> High | K127: =RVAT_Output!L408 -> Med | O127: =RVAT_Output!P408 -> Low | S127: =RVAT_Output!T408 -> Low
B128: =RVAT_Output!C409 -> Infrastructure | C128: =RVAT_Output!D409 -> Med | F128: =RVAT_Output!G409 -> Med | J128: =RVAT_Output!K409 -> Med | M128: =RVAT_Output!N409 -> Med | P128: =RVAT_Output!Q409 -> Low | T128: =RVAT_Output!U409 -> Low
A129: =RVAT_Output!B410 -> FUTURE
B130: =RVAT_Output!C411 -> Livelihoods | C130: =RVAT_Output!D411 -> Med | J130: =RVAT_Output!K411 -> Med | P130: =RVAT_Output!Q411 -> Med
B131: =RVAT_Output!C412 -> Health & Safety | C131: =RVAT_Output!D412 -> Low | J131: =RVAT_Output!K412 -> Low | P131: =RVAT_Output!Q412 -> Low
B132: =RVAT_Output!C413 -> Services | C132: =RVAT_Output!D413 -> Med | G132: =RVAT_Output!H413 -> Med | K132: =RVAT_Output!L413 -> Low | O132: =RVAT_Output!P413 -> Med | S132: =RVAT_Output!T413 -> Med
B133: =RVAT_Output!C414 -> Water Supply | C133: =RVAT_Output!D414 -> Med | G133: =RVAT_Output!H414 -> High | K133: =RVAT_Output!L414 -> Med | O133: =RVAT_Output!P414 -> Low | S133: =RVAT_Output!T414 -> Low
B134: =RVAT_Output!C415 -> Infrastructure | C134: =RVAT_Output!D415 -> Med | F134: =RVAT_Output!G415 -> Med | J134: =RVAT_Output!K415 -> Med | M134: =RVAT_Output!N415 -> Med | P134: =RVAT_Output!Q415 -> Low | T134: =RVAT_Output!U415 -> Low | X134: High
A136: =RVAT_Output!B365 -> VULNERABILITY - Part 2
C137: =RVAT_Output!D366 -> Livelihoods | G137: =RVAT_Output!H366 -> Health & Safety | K137: =RVAT_Output!L366 -> Services | O137: =RVAT_Output!P366 -> Water Supply | S137: =RVAT_Output!T366 -> Infrastructure
A138: =RVAT_Output!B367 -> CURRENT
C139: =RVAT_Output!D368 -> High | G139: =RVAT_Output!H368 -> High | K139: =RVAT_Output!L368 -> High | O139: =RVAT_Output!P368 -> High | S139: =RVAT_Output!T368 -> High
A140: =RVAT_Output!B369 -> FUTURE
C141: =RVAT_Output!D370 -> High | G141: =RVAT_Output!H370 -> High | K141: =RVAT_Output!L370 -> High | O141: =RVAT_Output!P370 -> High | S141: =RVAT_Output!T370 -> High
A142: =RVAT_Output!B372 -> VULNERABILITY - Part 3
B143: =RVAT_Output!C373 -> Livelihoods | C143: =RVAT_Output!D373 -> Food security | J143: =RVAT_Output!K373 -> Crops | P143: =RVAT_Output!Q373 -> Livestock
B144: =RVAT_Output!C374 -> Health & Safety | C144: =RVAT_Output!D374 -> Water Borne Diseases | J144: =RVAT_Output!K374 -> Vector Diseases | P144: =RVAT_Output!Q374 -> Safety
B145: =RVAT_Output!C375 -> Services | C145: =RVAT_Output!D375 -> Housing | G145: =RVAT_Output!H375 -> Land | K145: =RVAT_Output!L375 -> Community | O145: =RVAT_Output!P375 -> Sanitation | S145: =RVAT_Output!T375 -> Energy
B146: =RVAT_Output!C376 -> Water Supply | C146: =RVAT_Output!D376 -> Access | G146: =RVAT_Output!H376 -> Quality | K146: =RVAT_Output!L376 -> Droughts | O146: =RVAT_Output!P376 -> Floods | S146: =RVAT_Output!T376 -> Other Climate Hazards
B147: =RVAT_Output!C377 -> Infrastructure | C147: =RVAT_Output!D377 -> Water Supply | F147: =RVAT_Output!G377 -> Water Treatment | J147: =RVAT_Output!K377 -> Water Storage | M147: =RVAT_Output!N377 -> Ecol & Green Infra | P147: =RVAT_Output!Q377 -> Energy | T147: =RVAT_Output!U377 -> Roads & Public Infra
A148: =RVAT_Output!B378 -> CURRENT
B149: =RVAT_Output!C379 -> Livelihoods | C149: =RVAT_Output!D379 -> High | J149: =RVAT_Output!K379 -> High | P149: =RVAT_Output!Q379 -> High
B150: =RVAT_Output!C380 -> Health & Safety | C150: =RVAT_Output!D380 -> High | J150: =RVAT_Output!K380 -> High | P150: =RVAT_Output!Q380 -> High
B151: =RVAT_Output!C381 -> Services | C151: =RVAT_Output!D381 -> High | G151: =RVAT_Output!H381 -> High | K151: =RVAT_Output!L381 -> High | O151: =RVAT_Output!P381 -> High | S151: =RVAT_Output!T381 -> High
B152: =RVAT_Output!C382 -> Water Supply | C152: =RVAT_Output!D382 -> High | G152: =RVAT_Output!H382 -> High | K152: =RVAT_Output!L382 -> High | O152: =RVAT_Output!P382 -> High | S152: =RVAT_Output!T382 -> High
B153: =RVAT_Output!C383 -> Infrastructure | C153: =RVAT_Output!D383 -> High | F153: =RVAT_Output!G383 -> High | J153: =RVAT_Output!K383 -> High | M153: =RVAT_Output!N383 -> High | P153: =RVAT_Output!Q383 -> High | T153: =RVAT_Output!U383 -> High
A154: =RVAT_Output!B384 -> FUTURE
B155: =RVAT_Output!C385 -> Livelihoods | C155: =RVAT_Output!D385 -> High | J155: =RVAT_Output!K385 -> High | P155: =RVAT_Output!Q385 -> High
B156: =RVAT_Output!C386 -> Health & Safety | C156: =RVAT_Output!D386 -> High | J156: =RVAT_Output!K386 -> High | P156: =RVAT_Output!Q386 -> High
B157: =RVAT_Output!C387 -> Services | C157: =RVAT_Output!D387 -> High | G157: =RVAT_Output!H387 -> High | K157: =RVAT_Output!L387 -> High | O157: =RVAT_Output!P387 -> High | S157: =RVAT_Output!T387 -> High
B158: =RVAT_Output!C388 -> Water Supply | C158: =RVAT_Output!D388 -> High | G158: =RVAT_Output!H388 -> High | K158: =RVAT_Output!L388 -> High | O158: =RVAT_Output!P388 -> High | S158: =RVAT_Output!T388 -> High
B159: =RVAT_Output!C389 -> Infrastructure | C159: =RVAT_Output!D389 -> High | F159: =RVAT_Output!G389 -> High | J159: =RVAT_Output!K389 -> High | M159: =RVAT_Output!N389 -> High | P159: =RVAT_Output!Q389 -> High | T159: =RVAT_Output!U389 -> High
